{"text_format":"3","workbook":"xlsx","n_sheets":1,"sheets":["WYKAZ URZĄDZEŃ EADC"],"not_rendered":{"macros":1,"defined_names":17},"read":"whole","date_system":"1900"}

{"sheet":"WYKAZ URZĄDZEŃ EADC","index":0,"n_rows":312,"n_cols":16,"rows_kept":312}
[null,"FORMULARZ CENOWY DLA ZADANIA NR 2 -SERWISOWANIE INSTALACJI KLIMATYZACJI I WENTYLACJI W RAMACH UMOWY EDCA",{"$nulls":13},"Załącznik Nr 1 do umowy"]
[null,"ŁĄCZNA WARTOŚĆ PRZEGLĄDÓW:","ILOŚĆ POZYCJI",null,"ILOŚĆ URZĄDZEŃ"]
[null,{"$f":"SUM(Wykaz_zapasów543[ŁĄCZNA WARTOŚĆ \nPRZEGLĄDÓW])","v":{"v":0,"d":"0.00 zł"}},{"$f":"COUNTA(Wykaz_zapasów543[Typ urządzenia])","v":308},null,{"$f":"SUM(Wykaz_zapasów543[Ilość urządzeń])","v":480}]
[null,"Nazwa urządzenia","Typ urządzenia","Budynek/Pomieszczenie","Ilość urządzeń","Ilość przeglądów","Typ wkładów filtrów","Ilośc filtrów \ndo wymiany","Krotność wymiany \nfiltrów","Dezynfekcja \nurządzenia","Koszt za I przegląd\nbrutto","Koszt za II przegląd\nbrutto","ŁĄCZNA WARTOŚĆ \nPRZEGLĄDÓW","Urżdzenie na gwarancji"]
[null,"Klimatyzator Split","Jednostka zewnętrzna:\nROTENSO R35WOR11\ns/n 12672WK77ZZK71303736","KONTENER\nprzy Bud. 343/6015",1,1,"NIE WYSTĘPUJĄ",0,0,"TAK",{"v":0,"d":"0.00 zł"},null,{"$f":"Wykaz_zapasów543[[#This Row],[Koszt za I przegląd\nbrutto]]+Wykaz_zapasów543[[#This Row],[Koszt za II przegląd\nbrutto]]","v":{"v":0,"d":"0.00 zł"}},"NIE"]
[null,null,"Jednostka wewnętrzna:\nROTENSO R35WI/O_R11\ns/n 113687NK498ZK71303688","KONTENER\nprzy Bud. 343/6015",1,1,"NIE WYSTĘPUJĄ",0,0,"TAK",{"v":0,"d":"0.00 zł"},null,{"$f":"Wykaz_zapasów543[[#This Row],[Koszt za I przegląd\nbrutto]]+Wykaz_zapasów543[[#This Row],[Koszt za II przegląd\nbrutto]]","v":{"v":0,"d":"0.00 zł"}},"NIE"]
[null,"Klimatyzator Split","Jednostka zewnętrzna:\nROTENSO R35WOR11\ns/n 12672WK77ZZK71303478","KONTENER\nprzy Bud. 343/6015",1,1,"NIE WYSTĘPUJĄ",0,0,"TAK",{"v":0,"d":"0.00 zł"},null,{"$f":"Wykaz_zapasów543[[#This Row],[Koszt za I przegląd\nbrutto]]+Wykaz_zapasów543[[#This Row],[Koszt za II przegląd\nbrutto]]","v":{"v":0,"d":"0.00 zł"}},"NIE"]
[null,null,"Jednostka wewnętrzna:\nROTENSO R35WI/O_R11\ns/n 113687NK498ZK71303356","KONTENER\nprzy Bud. 343/6015",1,1,"NIE WYSTĘPUJĄ",0,0,"TAK",{"v":0,"d":"0.00 zł"},null,{"$f":"Wykaz_zapasów543[[#This Row],[Koszt za I przegląd\nbrutto]]+Wykaz_zapasów543[[#This Row],[Koszt za II przegląd\nbrutto]]","v":{"v":0,"d":"0.00 zł"}},"NIE"]
[null,"Klimatyzator Split","Jednostka zewnętrzna:\nROTENSO R35WOR11\ns/n 12672WK77ZZK71303768","KONTENER\nprzy Bud. 343/6015",1,1,"NIE WYSTĘPUJĄ",0,0,"TAK",{"v":0,"d":"0.00 zł"},null,{"$f":"Wykaz_zapasów543[[#This Row],[Koszt za I przegląd\nbrutto]]+Wykaz_zapasów543[[#This Row],[Koszt za II przegląd\nbrutto]]","v":{"v":0,"d":"0.00 zł"}},"NIE"]
[null,null,"Jednostka wewnętrzna:\nROTENSO R35WI/O_R11\ns/n 113687NK498ZK71303127","KONTENER\nprzy Bud. 343/6015",1,1,"NIE WYSTĘPUJĄ",0,0,"TAK",{"v":0,"d":"0.00 zł"},null,{"$f":"Wykaz_zapasów543[[#This Row],[Koszt za I przegląd\nbrutto]]+Wykaz_zapasów543[[#This Row],[Koszt za II przegląd\nbrutto]]","v":{"v":0,"d":"0.00 zł"}},"NIE"]
[null,"Klimatyzator Split","Jednostka zewnętrzna:\nROTENSO R35WOR11\ns/n 12672WK77ZZK71303675","KONTENER\nprzy Bud. 343/6015",1,1,"NIE WYSTĘPUJĄ",0,0,"TAK",{"v":0,"d":"0.00 zł"},null,{"$f":"Wykaz_zapasów543[[#This Row],[Koszt za I przegląd\nbrutto]]+Wykaz_zapasów543[[#This Row],[Koszt za II przegląd\nbrutto]]","v":{"v":0,"d":"0.00 zł"}},"NIE"]
[null,null,"Jednostka wewnętrzna:\nROTENSO R35WI/O_R11\ns/n 113687NK498ZK71303666","KONTENER\nprzy Bud. 343/6015",1,1,"NIE WYSTĘPUJĄ",0,0,"TAK",{"v":0,"d":"0.00 zł"},null,{"$f":"Wykaz_zapasów543[[#This Row],[Koszt za I przegląd\nbrutto]]+Wykaz_zapasów543[[#This Row],[Koszt za II przegląd\nbrutto]]","v":{"v":0,"d":"0.00 zł"}},"NIE"]
[null,"Klimatyzator Split","Jednostka zewnętrzna:\nROTENSO R35WOR11\ns/n 12672WK77ZZK71303898","KONTENER\nprzy Bud. 343/6015",1,1,"NIE WYSTĘPUJĄ",0,0,"TAK",{"v":0,"d":"0.00 zł"},null,{"$f":"Wykaz_zapasów543[[#This Row],[Koszt za I przegląd\nbrutto]]+Wykaz_zapasów543[[#This Row],[Koszt za II przegląd\nbrutto]]","v":{"v":0,"d":"0.00 zł"}},"NIE"]
[null,null,"Jednostka wewnętrzna:\nROTENSO R35WI/O_R11\ns/n 113687NK498ZK71303325","KONTENER\nprzy Bud. 343/6015",1,1,"NIE WYSTĘPUJĄ",0,0,"TAK",{"v":0,"d":"0.00 zł"},null,{"$f":"Wykaz_zapasów543[[#This Row],[Koszt za I przegląd\nbrutto]]+Wykaz_zapasów543[[#This Row],[Koszt za II przegląd\nbrutto]]","v":{"v":0,"d":"0.00 zł"}},"NIE"]
[null,"Klimatyzator Split","Jednostka zewnętrzna:\nROTENSO R35WOR11\ns/n 12672WK77ZZK71303741","KONTENER\nprzy Bud. 343/6015",1,1,"NIE WYSTĘPUJĄ",0,0,"TAK",{"v":0,"d":"0.00 zł"},null,{"$f":"Wykaz_zapasów543[[#This Row],[Koszt za I przegląd\nbrutto]]+Wykaz_zapasów543[[#This Row],[Koszt za II przegląd\nbrutto]]","v":{"v":0,"d":"0.00 zł"}},"NIE"]
[null,null,"Jednostka wewnętrzna:\nROTENSO R35WI/O_R11\ns/n 113687NK498ZK71303671","KONTENER\nprzy Bud. 343/6015",1,1,"NIE WYSTĘPUJĄ",0,0,"TAK",{"v":0,"d":"0.00 zł"},null,{"$f":"Wykaz_zapasów543[[#This Row],[Koszt za I przegląd\nbrutto]]+Wykaz_zapasów543[[#This Row],[Koszt za II przegląd\nbrutto]]","v":{"v":0,"d":"0.00 zł"}},"NIE"]
[null,"Klimatyzator Split","Jednostka zewnętrzna:\nROTENSO R35WOR11\ns/n 12672WK77ZZK71303755","KONTENER\nprzy Bud. 343/6015",1,1,"NIE WYSTĘPUJĄ",0,0,"TAK",{"v":0,"d":"0.00 zł"},null,{"$f":"Wykaz_zapasów543[[#This Row],[Koszt za I przegląd\nbrutto]]+Wykaz_zapasów543[[#This Row],[Koszt za II przegląd\nbrutto]]","v":{"v":0,"d":"0.00 zł"}},"NIE"]
[null,null,"Jednostka wewnętrzna:\nROTENSO R35WI/O_R11\ns/n 113687NK498ZK71303676","KONTENER\nprzy Bud. 343/6015",1,1,"NIE WYSTĘPUJĄ",0,0,"TAK",{"v":0,"d":"0.00 zł"},null,{"$f":"Wykaz_zapasów543[[#This Row],[Koszt za I przegląd\nbrutto]]+Wykaz_zapasów543[[#This Row],[Koszt za II przegląd\nbrutto]]","v":{"v":0,"d":"0.00 zł"}},"NIE"]
[null,"Klimatyzator Split","Jednostka zewnętrzna:\nROTENSO R35WOR11\ns/n 12672WK77ZZK71303707","KONTENER\nprzy Bud. 343/6015",1,1,"NIE WYSTĘPUJĄ",0,0,"TAK",{"v":0,"d":"0.00 zł"},null,{"$f":"Wykaz_zapasów543[[#This Row],[Koszt za I przegląd\nbrutto]]+Wykaz_zapasów543[[#This Row],[Koszt za II przegląd\nbrutto]]","v":{"v":0,"d":"0.00 zł"}},"NIE"]
[null,null,"Jednostka wewnętrzna:\nROTENSO R35WI/O_R11\ns/n 113687NK498ZK71307060","KONTENER\nprzy Bud. 343/6015",1,1,"NIE WYSTĘPUJĄ",0,0,"TAK",{"v":0,"d":"0.00 zł"},null,{"$f":"Wykaz_zapasów543[[#This Row],[Koszt za I przegląd\nbrutto]]+Wykaz_zapasów543[[#This Row],[Koszt za II przegląd\nbrutto]]","v":{"v":0,"d":"0.00 zł"}},"NIE"]
[null,"Klimatyzator Split","Jednostka zewnętrzna:\nROTENSO R35WOR11\ns/n 12672WK77ZZK71303390","KONTENER\nprzy Bud. 343/6015",1,1,"NIE WYSTĘPUJĄ",0,0,"TAK",{"v":0,"d":"0.00 zł"},null,{"$f":"Wykaz_zapasów543[[#This Row],[Koszt za I przegląd\nbrutto]]+Wykaz_zapasów543[[#This Row],[Koszt za II przegląd\nbrutto]]","v":{"v":0,"d":"0.00 zł"}},"NIE"]
[null,null,"Jednostka wewnętrzna:\nROTENSO R35WI/O_R11\ns/n 113687NK498ZK71303610","KONTENER\nprzy Bud. 343/6015",1,1,"NIE WYSTĘPUJĄ",0,0,"TAK",{"v":0,"d":"0.00 zł"},null,{"$f":"Wykaz_zapasów543[[#This Row],[Koszt za I przegląd\nbrutto]]+Wykaz_zapasów543[[#This Row],[Koszt za II przegląd\nbrutto]]","v":{"v":0,"d":"0.00 zł"}},"NIE"]
[null,"Klimatyzator Split","Jednostka zewnętrzna:\nROTENSO R35WOR11\ns/n 12672WK77ZZK71303102","KONTENER\nprzy Bud. 343/6015",1,1,"NIE WYSTĘPUJĄ",0,0,"TAK",{"v":0,"d":"0.00 zł"},null,{"$f":"Wykaz_zapasów543[[#This Row],[Koszt za I przegląd\nbrutto]]+Wykaz_zapasów543[[#This Row],[Koszt za II przegląd\nbrutto]]","v":{"v":0,"d":"0.00 zł"}},"NIE"]
[null,null,"Jednostka wewnętrzna:\nROTENSO R35WI/O_R11\ns/n 113687NK498ZK71303129","KONTENER\nprzy Bud. 343/6015",1,1,"NIE WYSTĘPUJĄ",0,0,"TAK",{"v":0,"d":"0.00 zł"},null,{"$f":"Wykaz_zapasów543[[#This Row],[Koszt za I przegląd\nbrutto]]+Wykaz_zapasów543[[#This Row],[Koszt za II przegląd\nbrutto]]","v":{"v":0,"d":"0.00 zł"}},"NIE"]
[null,"Klimatyzator Split","Jednostka zewnętrzna:\nROTENSO R35WOR11\ns/n 12672WK77ZZK71303795","KONTENER\nprzy Bud. 343/6015",1,1,"NIE WYSTĘPUJĄ",0,0,"TAK",{"v":0,"d":"0.00 zł"},null,{"$f":"Wykaz_zapasów543[[#This Row],[Koszt za I przegląd\nbrutto]]+Wykaz_zapasów543[[#This Row],[Koszt za II przegląd\nbrutto]]","v":{"v":0,"d":"0.00 zł"}},"NIE"]
[null,null,"Jednostka wewnętrzna:\nROTENSO R35WI/O_R11\ns/n 113687NK498ZK71303181","KONTENER\nprzy Bud. 343/6015",1,1,"NIE WYSTĘPUJĄ",0,0,"TAK",{"v":0,"d":"0.00 zł"},null,{"$f":"Wykaz_zapasów543[[#This Row],[Koszt za I przegląd\nbrutto]]+Wykaz_zapasów543[[#This Row],[Koszt za II przegląd\nbrutto]]","v":{"v":0,"d":"0.00 zł"}},"NIE"]
[null,"Klimatyzator Split","Jednostka zewnętrzna:\nROTENSO R35WOR11\ns/n 12672WK77ZZK71303626","KONTENER\nprzy Bud. 343/6015",1,1,"NIE WYSTĘPUJĄ",0,0,"TAK",{"v":0,"d":"0.00 zł"},null,{"$f":"Wykaz_zapasów543[[#This Row],[Koszt za I przegląd\nbrutto]]+Wykaz_zapasów543[[#This Row],[Koszt za II przegląd\nbrutto]]","v":{"v":0,"d":"0.00 zł"}},"NIE"]
[null,null,"Jednostka wewnętrzna:\nROTENSO R35WI/O_R11\ns/n 113687NK498ZK71303939","KONTENER\nprzy Bud. 343/6015",1,1,"NIE WYSTĘPUJĄ",0,0,"TAK",{"v":0,"d":"0.00 zł"},null,{"$f":"Wykaz_zapasów543[[#This Row],[Koszt za I przegląd\nbrutto]]+Wykaz_zapasów543[[#This Row],[Koszt za II przegląd\nbrutto]]","v":{"v":0,"d":"0.00 zł"}},"NIE"]
[null,"Klimatyzator Split","Jednostka zewnętrzna:\nROTENSO R35WOR11\ns/n 12672WK77ZZK71303081","KONTENER\nprzy Bud. 343/6015",1,1,"NIE WYSTĘPUJĄ",0,0,"TAK",{"v":0,"d":"0.00 zł"},null,{"$f":"Wykaz_zapasów543[[#This Row],[Koszt za I przegląd\nbrutto]]+Wykaz_zapasów543[[#This Row],[Koszt za II przegląd\nbrutto]]","v":{"v":0,"d":"0.00 zł"}},"NIE"]
[null,null,"Jednostka wewnętrzna:\nROTENSO R35WI/O_R11\ns/n 113687NK498ZK71303511","KONTENER\nprzy Bud. 343/6015",1,1,"NIE WYSTĘPUJĄ",0,0,"TAK",{"v":0,"d":"0.00 zł"},null,{"$f":"Wykaz_zapasów543[[#This Row],[Koszt za I przegląd\nbrutto]]+Wykaz_zapasów543[[#This Row],[Koszt za II przegląd\nbrutto]]","v":{"v":0,"d":"0.00 zł"}},"NIE"]
[null,"Klimatyzator Split","Jednostka zewnętrzna:\nROTENSO R35WOR11\ns/n 12672WK77ZZK71303944","KONTENER\nprzy Bud. 343/6015",1,1,"NIE WYSTĘPUJĄ",0,0,"TAK",{"v":0,"d":"0.00 zł"},null,{"$f":"Wykaz_zapasów543[[#This Row],[Koszt za I przegląd\nbrutto]]+Wykaz_zapasów543[[#This Row],[Koszt za II przegląd\nbrutto]]","v":{"v":0,"d":"0.00 zł"}},"NIE"]
[null,null,"Jednostka wewnętrzna:\nROTENSO R35WI/O_R11\ns/n 113687NK498ZK71303722","KONTENER\nprzy Bud. 343/6015",1,1,"NIE WYSTĘPUJĄ",0,0,"TAK",{"v":0,"d":"0.00 zł"},null,{"$f":"Wykaz_zapasów543[[#This Row],[Koszt za I przegląd\nbrutto]]+Wykaz_zapasów543[[#This Row],[Koszt za II przegląd\nbrutto]]","v":{"v":0,"d":"0.00 zł"}},"NIE"]
[null,"Klimatyzator Split","Jednostka zewnętrzna:\nROTENSO R35WOR11\ns/n 1B120WKA00ZKA0500269","KONTENER\nprzy Bud. 343/6015",1,1,"NIE WYSTĘPUJĄ",0,0,"TAK",{"v":0,"d":"0.00 zł"},null,{"$f":"Wykaz_zapasów543[[#This Row],[Koszt za I przegląd\nbrutto]]+Wykaz_zapasów543[[#This Row],[Koszt za II przegląd\nbrutto]]","v":{"v":0,"d":"0.00 zł"}},"NIE"]
[null,null,"Jednostka wewnętrzna:\nROTENSO R35WI/O_R11\ns/n 113687NK498ZK71303621","KONTENER\nprzy Bud. 343/6015",1,1,"NIE WYSTĘPUJĄ",0,0,"TAK",{"v":0,"d":"0.00 zł"},null,{"$f":"Wykaz_zapasów543[[#This Row],[Koszt za I przegląd\nbrutto]]+Wykaz_zapasów543[[#This Row],[Koszt za II przegląd\nbrutto]]","v":{"v":0,"d":"0.00 zł"}},"NIE"]
[null,"Klimatyzator Split","Jednostka zewnętrzna:\nROTENSO R35WOR11\ns/n 12672WK77ZZK71303769","KONTENER\nprzy Bud. 343/6015",1,1,"NIE WYSTĘPUJĄ",0,0,"TAK",{"v":0,"d":"0.00 zł"},null,{"$f":"Wykaz_zapasów543[[#This Row],[Koszt za I przegląd\nbrutto]]+Wykaz_zapasów543[[#This Row],[Koszt za II przegląd\nbrutto]]","v":{"v":0,"d":"0.00 zł"}},"NIE"]
[null,null,"Jednostka wewnętrzna:\nROTENSO R35WI/O_R11\ns/n 113687NK498ZK71303758","KONTENER\nprzy Bud. 343/6015",1,1,"NIE WYSTĘPUJĄ",0,0,"TAK",{"v":0,"d":"0.00 zł"},null,{"$f":"Wykaz_zapasów543[[#This Row],[Koszt za I przegląd\nbrutto]]+Wykaz_zapasów543[[#This Row],[Koszt za II przegląd\nbrutto]]","v":{"v":0,"d":"0.00 zł"}},"NIE"]
[null,"Klimatyzator Split","Jednostka zewnętrzna:\nROTENSO R35WOR11\ns/n 12672WK77ZZK71303032","KONTENER\nprzy Bud. 343/6015",1,1,"NIE WYSTĘPUJĄ",0,0,"TAK",{"v":0,"d":"0.00 zł"},null,{"$f":"Wykaz_zapasów543[[#This Row],[Koszt za I przegląd\nbrutto]]+Wykaz_zapasów543[[#This Row],[Koszt za II przegląd\nbrutto]]","v":{"v":0,"d":"0.00 zł"}},"NIE"]
[null,null,"Jednostka wewnętrzna:\nROTENSO R35WI/O_R11\ns/n 113687NK498ZK71303168","KONTENER\nprzy Bud. 343/6015",1,1,"NIE WYSTĘPUJĄ",0,0,"TAK",{"v":0,"d":"0.00 zł"},null,{"$f":"Wykaz_zapasów543[[#This Row],[Koszt za I przegląd\nbrutto]]+Wykaz_zapasów543[[#This Row],[Koszt za II przegląd\nbrutto]]","v":{"v":0,"d":"0.00 zł"}},"NIE"]
[null,"Klimatyzator Split","Jednostka zewnętrzna:\nROTENSO R35WOR11\ns/n 12672WK77ZZK71303048","KONTENER\nprzy Bud. 343/6015",1,1,"NIE WYSTĘPUJĄ",0,0,"TAK",{"v":0,"d":"0.00 zł"},null,{"$f":"Wykaz_zapasów543[[#This Row],[Koszt za I przegląd\nbrutto]]+Wykaz_zapasów543[[#This Row],[Koszt za II przegląd\nbrutto]]","v":{"v":0,"d":"0.00 zł"}},"NIE"]
[null,null,"Jednostka wewnętrzna:\nROTENSO R35WI/O_R11\ns/n 113687NK498ZK71303489","KONTENER\nprzy Bud. 343/6015",1,1,"NIE WYSTĘPUJĄ",0,0,"TAK",{"v":0,"d":"0.00 zł"},null,{"$f":"Wykaz_zapasów543[[#This Row],[Koszt za I przegląd\nbrutto]]+Wykaz_zapasów543[[#This Row],[Koszt za II przegląd\nbrutto]]","v":{"v":0,"d":"0.00 zł"}},"NIE"]
[null,"Klimatyzator Split","Jednostka zewnętrzna:\nROTENSO R35WOR11\ns/n 12672WK77ZZK71303282","KONTENER\nprzy Bud. 343/6015",1,1,"NIE WYSTĘPUJĄ",0,0,"TAK",{"v":0,"d":"0.00 zł"},null,{"$f":"Wykaz_zapasów543[[#This Row],[Koszt za I przegląd\nbrutto]]+Wykaz_zapasów543[[#This Row],[Koszt za II przegląd\nbrutto]]","v":{"v":0,"d":"0.00 zł"}},"NIE"]
[null,null,"Jednostka wewnętrzna:\nROTENSO R35WI/O_R11\ns/n 113687NK498ZK71303451","KONTENER\nprzy Bud. 343/6015",1,1,"NIE WYSTĘPUJĄ",0,0,"TAK",{"v":0,"d":"0.00 zł"},null,{"$f":"Wykaz_zapasów543[[#This Row],[Koszt za I przegląd\nbrutto]]+Wykaz_zapasów543[[#This Row],[Koszt za II przegląd\nbrutto]]","v":{"v":0,"d":"0.00 zł"}},"NIE"]
[null,"Klimatyzator Split","Jednostka zewnętrzna:\nROTENSO R35WOR11\ns/n 12672WK77ZZK71303584","KONTENER\nprzy Bud. 343/6015",1,1,"NIE WYSTĘPUJĄ",0,0,"TAK",{"v":0,"d":"0.00 zł"},null,{"$f":"Wykaz_zapasów543[[#This Row],[Koszt za I przegląd\nbrutto]]+Wykaz_zapasów543[[#This Row],[Koszt za II przegląd\nbrutto]]","v":{"v":0,"d":"0.00 zł"}},"NIE"]
[null,null,"Jednostka wewnętrzna:\nROTENSO R35WI/O_R11\ns/n 113687NK498ZK71303727","KONTENER\nprzy Bud. 343/6015",1,1,"NIE WYSTĘPUJĄ",0,0,"TAK",{"v":0,"d":"0.00 zł"},null,{"$f":"Wykaz_zapasów543[[#This Row],[Koszt za I przegląd\nbrutto]]+Wykaz_zapasów543[[#This Row],[Koszt za II przegląd\nbrutto]]","v":{"v":0,"d":"0.00 zł"}},"NIE"]
[null,"Klimatyzator Split","Jednostka zewnętrzna:\nROTENSO R35WOR11\ns/n 12672WK77ZZK71303844","KONTENER\nprzy Bud. 343/6015",1,1,"NIE WYSTĘPUJĄ",0,0,"TAK",{"v":0,"d":"0.00 zł"},null,{"$f":"Wykaz_zapasów543[[#This Row],[Koszt za I przegląd\nbrutto]]+Wykaz_zapasów543[[#This Row],[Koszt za II przegląd\nbrutto]]","v":{"v":0,"d":"0.00 zł"}},"NIE"]
[null,null,"Jednostka wewnętrzna:\nROTENSO R35WI/O_R11\ns/n 113687NK498ZK71303623","KONTENER\nprzy Bud. 343/6015",1,1,"NIE WYSTĘPUJĄ",0,0,"TAK",{"v":0,"d":"0.00 zł"},null,{"$f":"Wykaz_zapasów543[[#This Row],[Koszt za I przegląd\nbrutto]]+Wykaz_zapasów543[[#This Row],[Koszt za II przegląd\nbrutto]]","v":{"v":0,"d":"0.00 zł"}},"NIE"]
[null,"Klimatyzator Split","Jednostka zewnętrzna:\nROTENSO R35WOR11\ns/n 12672WK77ZZK71303037","KONTENER\nprzy Bud. 343/6015",1,1,"NIE WYSTĘPUJĄ",0,0,"TAK",{"v":0,"d":"0.00 zł"},null,{"$f":"Wykaz_zapasów543[[#This Row],[Koszt za I przegląd\nbrutto]]+Wykaz_zapasów543[[#This Row],[Koszt za II przegląd\nbrutto]]","v":{"v":0,"d":"0.00 zł"}},"NIE"]
[null,null,"Jednostka wewnętrzna:\nROTENSO R35WI/O_R11\ns/n 113687NK498ZK71303007","KONTENER\nprzy Bud. 343/6015",1,1,"NIE WYSTĘPUJĄ",0,0,"TAK",{"v":0,"d":"0.00 zł"},null,{"$f":"Wykaz_zapasów543[[#This Row],[Koszt za I przegląd\nbrutto]]+Wykaz_zapasów543[[#This Row],[Koszt za II przegląd\nbrutto]]","v":{"v":0,"d":"0.00 zł"}},"NIE"]
[null,"Klimatyzator Split","Jednostka zewnętrzna:\nROTENSO R35WOR11\ns/n 1B120WKA000ZKA0800472","KONTENER\nprzy Bud. 343/6015",1,1,"NIE WYSTĘPUJĄ",0,0,"TAK",{"v":0,"d":"0.00 zł"},null,{"$f":"Wykaz_zapasów543[[#This Row],[Koszt za I przegląd\nbrutto]]+Wykaz_zapasów543[[#This Row],[Koszt za II przegląd\nbrutto]]","v":{"v":0,"d":"0.00 zł"}},"NIE"]
[null,null,"Jednostka wewnętrzna:\nROTENSO R35WI/O_R11\ns/n 113687NK498ZK71303634","KONTENER\nprzy Bud. 343/6015",1,1,"NIE WYSTĘPUJĄ",0,0,"TAK",{"v":0,"d":"0.00 zł"},null,{"$f":"Wykaz_zapasów543[[#This Row],[Koszt za I przegląd\nbrutto]]+Wykaz_zapasów543[[#This Row],[Koszt za II przegląd\nbrutto]]","v":{"v":0,"d":"0.00 zł"}},"NIE"]
[null,"Centrala wentylacyjna AHU1","Clima Produkt Optima\nNW-3-P-WO-Hw=We-2650/2650\ns/n C6123/20","Bud. 518/6015",1,1,"Kasetowy G4 490x490x100 \nKieszeniowy F5 490x490x500 \nKasetowy F7 490x490x100","2\n2\n2","Raz do roku","NIE",{"v":0,"d":"0.00 zł"},null,{"$f":"Wykaz_zapasów543[[#This Row],[Koszt za I przegląd\nbrutto]]+Wykaz_zapasów543[[#This Row],[Koszt za II przegląd\nbrutto]]","v":{"v":0,"d":"0.00 zł"}},"TAK"]
[null,"Centrala wentylacyjna AHU2","Clima Produkt Opal\nNW-3-L-WP-Hw=FW-We-1820/1250 \ns/n C6124/20","Bud. 518/6015",1,1,"Kasetowy G4 590x395x50 Kasetowy G4 590x395x50 Kieszeniowy F7 590x395x590","1\n1\n1","Raz do roku","NIE",{"v":0,"d":"0.00 zł"},null,{"$f":"Wykaz_zapasów543[[#This Row],[Koszt za I przegląd\nbrutto]]+Wykaz_zapasów543[[#This Row],[Koszt za II przegląd\nbrutto]]","v":{"v":0,"d":"0.00 zł"}},"TAK"]
[null,"Centrala wentylacyjna AHU3","Clima Produkt Opal\nNW-3-P-WP-Hw=FQ-We-2250/1550 \ns/n C6125/20","Bud. 518/6015",1,1,"Kasetowy G4 590x395x50 Kasetowy G4 590x395x50 Kieszeniowy F7 590x395x590","1\n1\n1","Raz do roku","NIE",{"v":0,"d":"0.00 zł"},null,{"$f":"Wykaz_zapasów543[[#This Row],[Koszt za I przegląd\nbrutto]]+Wykaz_zapasów543[[#This Row],[Koszt za II przegląd\nbrutto]]","v":{"v":0,"d":"0.00 zł"}},"TAK"]
[null,"Wentylator kanałowy ","Systemair DVC190-S EC\n189986/1005290500-005/20200413\n189986/1005290500-002/20200413\n189986/1005290500-006/20200413\n189986/1005290500-005/20200413","Bud. 518/6015",4,1,"NIE WYSTĘPUJĄ",0,0,"NIE",{"v":0,"d":"0.00 zł"},null,{"$f":"Wykaz_zapasów543[[#This Row],[Koszt za I przegląd\nbrutto]]+Wykaz_zapasów543[[#This Row],[Koszt za II przegląd\nbrutto]]","v":{"v":0,"d":"0.00 zł"}},"TAK"]
[null,"Wentylator dachowy ","Systemair  DVC225-S EC 190524/1005292509-006/20200420","Bud. 518/6015",1,1,"NIE WYSTĘPUJĄ",0,0,"NIE",{"v":0,"d":"0.00 zł"},null,{"$f":"Wykaz_zapasów543[[#This Row],[Koszt za I przegląd\nbrutto]]+Wykaz_zapasów543[[#This Row],[Koszt za II przegląd\nbrutto]]","v":{"v":0,"d":"0.00 zł"}},"TAK"]
[null,"Wnetylator kanałowy ","Systemair K100 EC Sileo\n16955/1005168829-318/20200316","Bud. 518/6015\npom. 104",1,1,"NIE WYSTĘPUJĄ",0,0,"NIE",{"v":0,"d":"0.00 zł"},null,{"$f":"Wykaz_zapasów543[[#This Row],[Koszt za I przegląd\nbrutto]]+Wykaz_zapasów543[[#This Row],[Koszt za II przegląd\nbrutto]]","v":{"v":0,"d":"0.00 zł"}},"TAK"]
[null,"Wnetylator kanałowy ","Systemair K100 EC Sileo\n16955/1005168829-318/20200316","Bud. 518/6015\npom. 103",1,1,"NIE WYSTĘPUJĄ",0,0,"NIE",{"v":0,"d":"0.00 zł"},null,{"$f":"Wykaz_zapasów543[[#This Row],[Koszt za I przegląd\nbrutto]]+Wykaz_zapasów543[[#This Row],[Koszt za II przegląd\nbrutto]]","v":{"v":0,"d":"0.00 zł"}},"TAK"]
[null,"Nagrzewnica kanałowa ","Harmann  HCD 125/18/1   \n200525-91250181200236","Bud. 518/6015\npom. 103, 104",2,1,"NIE WYSTĘPUJĄ",0,0,"NIE",{"v":0,"d":"0.00 zł"},null,{"$f":"Wykaz_zapasów543[[#This Row],[Koszt za I przegląd\nbrutto]]+Wykaz_zapasów543[[#This Row],[Koszt za II przegląd\nbrutto]]","v":{"v":0,"d":"0.00 zł"}},"TAK"]
[null,"Klimatyzavcja VRF","Jednostka zewnętrzna:\nFUJITSU AJY108LELAH\ns/n R301567","Bud. 518/6015",1,1,"NIE WYSTĘPUJĄ",0,0,"TAK",{"v":0,"d":"0.00 zł"},null,{"$f":"Wykaz_zapasów543[[#This Row],[Koszt za I przegląd\nbrutto]]+Wykaz_zapasów543[[#This Row],[Koszt za II przegląd\nbrutto]]","v":{"v":0,"d":"0.00 zł"}},"TAK"]
[null,1,"Jednostka wewnętrzna:\nFUJITSU ASYA014GCEH\ns/n E000674","Bud. 518/6015\npom. 108, 109, 127",1,1,"NIE WYSTĘPUJĄ",0,0,"TAK",{"v":0,"d":"0.00 zł"},null,{"$f":"Wykaz_zapasów543[[#This Row],[Koszt za I przegląd\nbrutto]]+Wykaz_zapasów543[[#This Row],[Koszt za II przegląd\nbrutto]]","v":{"v":0,"d":"0.00 zł"}},"TAK"]
[null,2,"Jednostka wewnętrzna:\nFUJITSU ASYA014GCEH\ns/n E000682","Bud. 518/6015\npom. 108, 109, 127",1,1,"NIE WYSTĘPUJĄ",0,0,"TAK",{"v":0,"d":"0.00 zł"},null,{"$f":"Wykaz_zapasów543[[#This Row],[Koszt za I przegląd\nbrutto]]+Wykaz_zapasów543[[#This Row],[Koszt za II przegląd\nbrutto]]","v":{"v":0,"d":"0.00 zł"}},"TAK"]
[null,3,"Jednostka wewnętrzna:\nFUJITSU ASYA014GCEH\ns/n E000669","Bud. 518/6015\npom. 108, 109, 127",1,1,"NIE WYSTĘPUJĄ",0,0,"TAK",{"v":0,"d":"0.00 zł"},null,{"$f":"Wykaz_zapasów543[[#This Row],[Koszt za I przegląd\nbrutto]]+Wykaz_zapasów543[[#This Row],[Koszt za II przegląd\nbrutto]]","v":{"v":0,"d":"0.00 zł"}},"TAK"]
[null,4,"Jednostka wewnętrzna:\nFUJITSU ASYA014GCEH\ns/n E000671","Bud. 518/6015\npom. 108, 109, 127",1,1,"NIE WYSTĘPUJĄ",0,0,"TAK",{"v":0,"d":"0.00 zł"},null,{"$f":"Wykaz_zapasów543[[#This Row],[Koszt za I przegląd\nbrutto]]+Wykaz_zapasów543[[#This Row],[Koszt za II przegląd\nbrutto]]","v":{"v":0,"d":"0.00 zł"}},"TAK"]
[null,5,"Jednostka wewnętrzna:\nFUJITSU ASYA014GCEH\ns/n E000687","Bud. 518/6015\npom. 108, 109, 127",1,1,"NIE WYSTĘPUJĄ",0,0,"TAK",{"v":0,"d":"0.00 zł"},null,{"$f":"Wykaz_zapasów543[[#This Row],[Koszt za I przegląd\nbrutto]]+Wykaz_zapasów543[[#This Row],[Koszt za II przegląd\nbrutto]]","v":{"v":0,"d":"0.00 zł"}},"TAK"]
[null,6,"Jednostka wewnętrzna:\nFUJITSU ASYA009GTECH\ns/n T001020","Bud. 518/6015\npom. 107",1,1,"NIE WYSTĘPUJĄ",0,0,"TAK",{"v":0,"d":"0.00 zł"},null,{"$f":"Wykaz_zapasów543[[#This Row],[Koszt za I przegląd\nbrutto]]+Wykaz_zapasów543[[#This Row],[Koszt za II przegląd\nbrutto]]","v":{"v":0,"d":"0.00 zł"}},"TAK"]
[null,7,"Jednostka wewnętrzna:\nFUJITSU ASYA009GTECH\ns/n T001010","Bud. 518/6015\npom. 126A",1,1,"NIE WYSTĘPUJĄ",0,0,"TAK",{"v":0,"d":"0.00 zł"},null,{"$f":"Wykaz_zapasów543[[#This Row],[Koszt za I przegląd\nbrutto]]+Wykaz_zapasów543[[#This Row],[Koszt za II przegląd\nbrutto]]","v":{"v":0,"d":"0.00 zł"}},"TAK"]
[null,8,"Jednostka wewnętrzna:\nFUJITSU ASYA009GTECH\ns/n T001016","Bud. 518/6015\npom. 125A",1,1,"NIE WYSTĘPUJĄ",0,0,"TAK",{"v":0,"d":"0.00 zł"},null,{"$f":"Wykaz_zapasów543[[#This Row],[Koszt za I przegląd\nbrutto]]+Wykaz_zapasów543[[#This Row],[Koszt za II przegląd\nbrutto]]","v":{"v":0,"d":"0.00 zł"}},"TAK"]
[null,9,"Jednostka wewnętrzna:\nFUJITSU ASYA009GTECH\ns/n T001009","Bud. 518/6015\npom. 125B",1,1,"NIE WYSTĘPUJĄ",0,0,"TAK",{"v":0,"d":"0.00 zł"},null,{"$f":"Wykaz_zapasów543[[#This Row],[Koszt za I przegląd\nbrutto]]+Wykaz_zapasów543[[#This Row],[Koszt za II przegląd\nbrutto]]","v":{"v":0,"d":"0.00 zł"}},"TAK"]
[null,10,"Jednostka wewnętrzna:\nFUJITSU ASYA007GTECH\ns/n T000730","Bud. 518/6015",1,1,"NIE WYSTĘPUJĄ",0,0,"TAK",{"v":0,"d":"0.00 zł"},null,{"$f":"Wykaz_zapasów543[[#This Row],[Koszt za I przegląd\nbrutto]]+Wykaz_zapasów543[[#This Row],[Koszt za II przegląd\nbrutto]]","v":{"v":0,"d":"0.00 zł"}},"TAK"]
[null,11,"Jednostka wewnętrzna:\nFUJITSU ASYA012GCECH\ns/n E000239","Bud. 518/6015",1,1,"NIE WYSTĘPUJĄ",0,0,"TAK",{"v":0,"d":"0.00 zł"},null,{"$f":"Wykaz_zapasów543[[#This Row],[Koszt za I przegląd\nbrutto]]+Wykaz_zapasów543[[#This Row],[Koszt za II przegląd\nbrutto]]","v":{"v":0,"d":"0.00 zł"}},"TAK"]
[null,"Klimatyzator Split","Jednostka zewnętrzna:\nFUJITSU AOYG18LFC\ns/n E145423","Bud. 518/6015",1,1,"NIE WYSTĘPUJĄ",0,0,"TAK",{"v":0,"d":"0.00 zł"},null,{"$f":"Wykaz_zapasów543[[#This Row],[Koszt za I przegląd\nbrutto]]+Wykaz_zapasów543[[#This Row],[Koszt za II przegląd\nbrutto]]","v":{"v":0,"d":"0.00 zł"}},"TAK"]
[null,null,"Jednostka wewnętrzna:\nFUJITSU ASYG18LFCA\ns/n E1614616","Bud. 518/6015\npom. 103",1,1,"NIE WYSTĘPUJĄ",0,0,"TAK",{"v":0,"d":"0.00 zł"},null,{"$f":"Wykaz_zapasów543[[#This Row],[Koszt za I przegląd\nbrutto]]+Wykaz_zapasów543[[#This Row],[Koszt za II przegląd\nbrutto]]","v":{"v":0,"d":"0.00 zł"}},"TAK"]
[null,"Klimatyzator Split","Jednostka zewnętrzna:\nFUJITSU AOYG07LFCE\ns/n E021542","Bud. 518/6015",1,1,"NIE WYSTĘPUJĄ",0,0,"TAK",{"v":0,"d":"0.00 zł"},null,{"$f":"Wykaz_zapasów543[[#This Row],[Koszt za I przegląd\nbrutto]]+Wykaz_zapasów543[[#This Row],[Koszt za II przegląd\nbrutto]]","v":{"v":0,"d":"0.00 zł"}},"TAK"]
[null,null,"Jednostka wewnętrzna:\nFUJITSU ASYG07LFCA\ns/n E076658","Bud. 518/6015\npom. 118",1,1,"NIE WYSTĘPUJĄ",0,0,"TAK",{"v":0,"d":"0.00 zł"},null,{"$f":"Wykaz_zapasów543[[#This Row],[Koszt za I przegląd\nbrutto]]+Wykaz_zapasów543[[#This Row],[Koszt za II przegląd\nbrutto]]","v":{"v":0,"d":"0.00 zł"}},"TAK"]
[null,"Klimatyzator MultiSplit","Jednostka zewnętrzna:\nFUJITSU AUYG12LVLB\ns/n T052736","Bud. 518/6016",1,1,"NIE WYSTĘPUJĄ",0,0,"TAK",{"v":0,"d":"0.00 zł"},null,{"$f":"Wykaz_zapasów543[[#This Row],[Koszt za I przegląd\nbrutto]]+Wykaz_zapasów543[[#This Row],[Koszt za II przegląd\nbrutto]]","v":{"v":0,"d":"0.00 zł"}},"TAK"]
[null,1,"Jednostka wewnętrzna:\nFUJITSU AUYG12LVLB\ns/n R035823","Bud. 518/6015\npom. 130",1,1,"NIE WYSTĘPUJĄ",0,0,"TAK",{"v":0,"d":"0.00 zł"},null,{"$f":"Wykaz_zapasów543[[#This Row],[Koszt za I przegląd\nbrutto]]+Wykaz_zapasów543[[#This Row],[Koszt za II przegląd\nbrutto]]","v":{"v":0,"d":"0.00 zł"}},"TAK"]
[null,2,"Jednostka wewnętrzna:\nFUJITSU AUYG12LVLB\ns/n R035809","Bud. 518/6015\npom. 130",1,1,"NIE WYSTĘPUJĄ",0,0,"TAK",{"v":0,"d":"0.00 zł"},null,{"$f":"Wykaz_zapasów543[[#This Row],[Koszt za I przegląd\nbrutto]]+Wykaz_zapasów543[[#This Row],[Koszt za II przegląd\nbrutto]]","v":{"v":0,"d":"0.00 zł"}},"TAK"]
[null,"Klimatyzator Split","Jednostka zewnętrzna:\nARCELIK 09325 2,6 kW \n(9000 BTU)","Bud. 519/6015",1,1,"NIE WYSTĘPUJĄ",0,0,"TAK",{"v":0,"d":"0.00 zł"},null,{"$f":"Wykaz_zapasów543[[#This Row],[Koszt za I przegląd\nbrutto]]+Wykaz_zapasów543[[#This Row],[Koszt za II przegląd\nbrutto]]","v":{"v":0,"d":"0.00 zł"}},"TAK"]
[null,null,"Jednostka wewnętrzna:\nARCELIK 2,6 Kw\n(9000 BTU)","Bud. 519/6015\npom. F 101",1,1,"NIE WYSTĘPUJĄ",0,0,"TAK",{"v":0,"d":"0.00 zł"},null,{"$f":"Wykaz_zapasów543[[#This Row],[Koszt za I przegląd\nbrutto]]+Wykaz_zapasów543[[#This Row],[Koszt za II przegląd\nbrutto]]","v":{"v":0,"d":"0.00 zł"}},"TAK"]
[null,"Klimatyzator Split","Jednostka zewnętrzna:\nARCELIK 09325 2,6 kW \n(9000 BTU)","Bud. 519/6016",1,1,"NIE WYSTĘPUJĄ",0,0,"TAK",{"v":0,"d":"0.00 zł"},null,{"$f":"Wykaz_zapasów543[[#This Row],[Koszt za I przegląd\nbrutto]]+Wykaz_zapasów543[[#This Row],[Koszt za II przegląd\nbrutto]]","v":{"v":0,"d":"0.00 zł"}},"TAK"]
[null,null,"Jednostka wewnętrzna:\nARCELIK 2,6 Kw\n(9000 BTU)","Bud. 519/6015\npom. F 102",1,1,"NIE WYSTĘPUJĄ",0,0,"TAK",{"v":0,"d":"0.00 zł"},null,{"$f":"Wykaz_zapasów543[[#This Row],[Koszt za I przegląd\nbrutto]]+Wykaz_zapasów543[[#This Row],[Koszt za II przegląd\nbrutto]]","v":{"v":0,"d":"0.00 zł"}},"TAK"]
[null,"Klimatyzator Split","Jednostka zewnętrzna:\nARCELIK 09325 2,6 kW \n(9000 BTU)","Bud. 519/6017",1,1,"NIE WYSTĘPUJĄ",0,0,"TAK",{"v":0,"d":"0.00 zł"},null,{"$f":"Wykaz_zapasów543[[#This Row],[Koszt za I przegląd\nbrutto]]+Wykaz_zapasów543[[#This Row],[Koszt za II przegląd\nbrutto]]","v":{"v":0,"d":"0.00 zł"}},"TAK"]
[null,null,"Jednostka wewnętrzna:\nARCELIK 2,6 Kw\n(9000 BTU)","Bud. 519/6015\npom. F 103",1,1,"NIE WYSTĘPUJĄ",0,0,"TAK",{"v":0,"d":"0.00 zł"},null,{"$f":"Wykaz_zapasów543[[#This Row],[Koszt za I przegląd\nbrutto]]+Wykaz_zapasów543[[#This Row],[Koszt za II przegląd\nbrutto]]","v":{"v":0,"d":"0.00 zł"}},"TAK"]
[null,"Klimatyzator Split","Jednostka zewnętrzna:\nARCELIK 09325 2,6 kW \n(9000 BTU)","Bud. 519/6018",1,1,"NIE WYSTĘPUJĄ",0,0,"TAK",{"v":0,"d":"0.00 zł"},null,{"$f":"Wykaz_zapasów543[[#This Row],[Koszt za I przegląd\nbrutto]]+Wykaz_zapasów543[[#This Row],[Koszt za II przegląd\nbrutto]]","v":{"v":0,"d":"0.00 zł"}},"TAK"]
[null,null,"Jednostka wewnętrzna:\nARCELIK 2,6 Kw\n(9000 BTU)","Bud. 519/6015\npom. F 104",1,1,"NIE WYSTĘPUJĄ",0,0,"TAK",{"v":0,"d":"0.00 zł"},null,{"$f":"Wykaz_zapasów543[[#This Row],[Koszt za I przegląd\nbrutto]]+Wykaz_zapasów543[[#This Row],[Koszt za II przegląd\nbrutto]]","v":{"v":0,"d":"0.00 zł"}},"TAK"]
[null,"Klimatyzator Split","Jednostka zewnętrzna:\nARCELIK 09325 2,6 kW \n(9000 BTU)","Bud. 519/6019",1,1,"NIE WYSTĘPUJĄ",0,0,"TAK",{"v":0,"d":"0.00 zł"},null,{"$f":"Wykaz_zapasów543[[#This Row],[Koszt za I przegląd\nbrutto]]+Wykaz_zapasów543[[#This Row],[Koszt za II przegląd\nbrutto]]","v":{"v":0,"d":"0.00 zł"}},"TAK"]
[null,null,"Jednostka wewnętrzna:\nARCELIK 2,6 Kw\n(9000 BTU)","Bud. 519/6015\npom. F 105",1,1,"NIE WYSTĘPUJĄ",0,0,"TAK",{"v":0,"d":"0.00 zł"},null,{"$f":"Wykaz_zapasów543[[#This Row],[Koszt za I przegląd\nbrutto]]+Wykaz_zapasów543[[#This Row],[Koszt za II przegląd\nbrutto]]","v":{"v":0,"d":"0.00 zł"}},"TAK"]
[null,"Klimatyzator Split","Jednostka zewnętrzna:\nARCELIK 09325 2,6 kW \n(9000 BTU)","Bud. 519/6020",1,1,"NIE WYSTĘPUJĄ",0,0,"TAK",{"v":0,"d":"0.00 zł"},null,{"$f":"Wykaz_zapasów543[[#This Row],[Koszt za I przegląd\nbrutto]]+Wykaz_zapasów543[[#This Row],[Koszt za II przegląd\nbrutto]]","v":{"v":0,"d":"0.00 zł"}},"TAK"]
[null,null,"Jednostka wewnętrzna:\nARCELIK 2,6 Kw\n(9000 BTU)","Bud. 519/6015\npom. F 106",1,1,"NIE WYSTĘPUJĄ",0,0,"TAK",{"v":0,"d":"0.00 zł"},null,{"$f":"Wykaz_zapasów543[[#This Row],[Koszt za I przegląd\nbrutto]]+Wykaz_zapasów543[[#This Row],[Koszt za II przegląd\nbrutto]]","v":{"v":0,"d":"0.00 zł"}},"TAK"]
[null,"Klimatyzator Split","Jednostka zewnętrzna:\nARCELIK 09325 2,6 kW \n(9000 BTU)","Bud. 519/6016",1,1,"NIE WYSTĘPUJĄ",0,0,"TAK",{"v":0,"d":"0.00 zł"},null,{"$f":"Wykaz_zapasów543[[#This Row],[Koszt za I przegląd\nbrutto]]+Wykaz_zapasów543[[#This Row],[Koszt za II przegląd\nbrutto]]","v":{"v":0,"d":"0.00 zł"}},"TAK"]
[null,null,"Jednostka wewnętrzna:\nARCELIK 2,6 Kw\n(9000 BTU)","Bud. 519/6015\npom. F 107",1,1,"NIE WYSTĘPUJĄ",0,0,"TAK",{"v":0,"d":"0.00 zł"},null,{"$f":"Wykaz_zapasów543[[#This Row],[Koszt za I przegląd\nbrutto]]+Wykaz_zapasów543[[#This Row],[Koszt za II przegląd\nbrutto]]","v":{"v":0,"d":"0.00 zł"}},"TAK"]
[null,"Klimatyzator Split","Jednostka zewnętrzna:\nARCELIK 09325 2,6 kW \n(9000 BTU)","Bud. 519/6017",1,1,"NIE WYSTĘPUJĄ",0,0,"TAK",{"v":0,"d":"0.00 zł"},null,{"$f":"Wykaz_zapasów543[[#This Row],[Koszt za I przegląd\nbrutto]]+Wykaz_zapasów543[[#This Row],[Koszt za II przegląd\nbrutto]]","v":{"v":0,"d":"0.00 zł"}},"TAK"]
[null,null,"Jednostka wewnętrzna:\nARCELIK 2,6 Kw\n(9000 BTU)","Bud. 519/6015\npom. F 108",1,1,"NIE WYSTĘPUJĄ",0,0,"TAK",{"v":0,"d":"0.00 zł"},null,{"$f":"Wykaz_zapasów543[[#This Row],[Koszt za I przegląd\nbrutto]]+Wykaz_zapasów543[[#This Row],[Koszt za II przegląd\nbrutto]]","v":{"v":0,"d":"0.00 zł"}},"TAK"]
[null,"Klimatyzator Split","Jednostka zewnętrzna:\nARCELIK 09325 2,6 kW \n(9000 BTU)","Bud. 519/6018",1,1,"NIE WYSTĘPUJĄ",0,0,"TAK",{"v":0,"d":"0.00 zł"},null,{"$f":"Wykaz_zapasów543[[#This Row],[Koszt za I przegląd\nbrutto]]+Wykaz_zapasów543[[#This Row],[Koszt za II przegląd\nbrutto]]","v":{"v":0,"d":"0.00 zł"}},"TAK"]
[null,null,"Jednostka wewnętrzna:\nARCELIK 2,6 Kw\n(9000 BTU)","Bud. 519/6015\npom. F 109",1,1,"NIE WYSTĘPUJĄ",0,0,"TAK",{"v":0,"d":"0.00 zł"},null,{"$f":"Wykaz_zapasów543[[#This Row],[Koszt za I przegląd\nbrutto]]+Wykaz_zapasów543[[#This Row],[Koszt za II przegląd\nbrutto]]","v":{"v":0,"d":"0.00 zł"}},"TAK"]
[null,"Klimatyzator Split","Jednostka zewnętrzna:\nARCELIK 09325 2,6 kW \n(9000 BTU)","Bud. 519/6019",1,1,"NIE WYSTĘPUJĄ",0,0,"TAK",{"v":0,"d":"0.00 zł"},null,{"$f":"Wykaz_zapasów543[[#This Row],[Koszt za I przegląd\nbrutto]]+Wykaz_zapasów543[[#This Row],[Koszt za II przegląd\nbrutto]]","v":{"v":0,"d":"0.00 zł"}},"TAK"]
[null,null,"Jednostka wewnętrzna:\nARCELIK 2,6 Kw\n(9000 BTU)","Bud. 519/6015\npom. F 110",1,1,"NIE WYSTĘPUJĄ",0,0,"TAK",{"v":0,"d":"0.00 zł"},null,{"$f":"Wykaz_zapasów543[[#This Row],[Koszt za I przegląd\nbrutto]]+Wykaz_zapasów543[[#This Row],[Koszt za II przegląd\nbrutto]]","v":{"v":0,"d":"0.00 zł"}},"TAK"]
[null,"Klimatyzator Split","Jednostka zewnętrzna:\nARCELIK 12325 2,6 kW \n(9000 BTU)","Bud. 519/6020",1,1,"NIE WYSTĘPUJĄ",0,0,"TAK",{"v":0,"d":"0.00 zł"},null,{"$f":"Wykaz_zapasów543[[#This Row],[Koszt za I przegląd\nbrutto]]+Wykaz_zapasów543[[#This Row],[Koszt za II przegląd\nbrutto]]","v":{"v":0,"d":"0.00 zł"}},"TAK"]
[null,null,"Jednostka wewnętrzna:\nARCELIK 2,6 Kw\n(9000 BTU)","Bud. 519/6015\npom. F 111",1,1,"NIE WYSTĘPUJĄ",0,0,"TAK",{"v":0,"d":"0.00 zł"},null,{"$f":"Wykaz_zapasów543[[#This Row],[Koszt za I przegląd\nbrutto]]+Wykaz_zapasów543[[#This Row],[Koszt za II przegląd\nbrutto]]","v":{"v":0,"d":"0.00 zł"}},"TAK"]
[null,"Klimatyzator Split","Jednostka zewnętrzna:\nARCELIK 18325 5,28 kW \n(18000 BTU)","Bud. 519/6021\n(zewnątrz wejście przód)",1,1,"NIE WYSTĘPUJĄ",0,0,"TAK",{"v":0,"d":"0.00 zł"},null,{"$f":"Wykaz_zapasów543[[#This Row],[Koszt za I przegląd\nbrutto]]+Wykaz_zapasów543[[#This Row],[Koszt za II przegląd\nbrutto]]","v":{"v":0,"d":"0.00 zł"}},"TAK"]
[null,null,"Jednostka wewnętrzna:\nARCELIK 5,28 Kw\n(18000 BTU)","Bud. 519/6015\n(korytarz od wejścia)",1,1,"NIE WYSTĘPUJĄ",0,0,"TAK",{"v":0,"d":"0.00 zł"},null,{"$f":"Wykaz_zapasów543[[#This Row],[Koszt za I przegląd\nbrutto]]+Wykaz_zapasów543[[#This Row],[Koszt za II przegląd\nbrutto]]","v":{"v":0,"d":"0.00 zł"}},"TAK"]
[null,"Klimatyzator Split","Jednostka zewnętrzna:\nARCELIK 18325 5,28 kW \n(18000 BTU)","Bud. 519/6021\n(zewnątrz tył budynku)",1,1,"NIE WYSTĘPUJĄ",0,0,"TAK",{"v":0,"d":"0.00 zł"},null,{"$f":"Wykaz_zapasów543[[#This Row],[Koszt za I przegląd\nbrutto]]+Wykaz_zapasów543[[#This Row],[Koszt za II przegląd\nbrutto]]","v":{"v":0,"d":"0.00 zł"}},"TAK"]
[null,null,"Jednostka wewnętrzna:\nARCELIK 5,28 Kw\n(18000 BTU)","Bud. 519/6015\n(korytarz od budynku)",1,1,"NIE WYSTĘPUJĄ",0,0,"TAK",{"v":0,"d":"0.00 zł"},null,{"$f":"Wykaz_zapasów543[[#This Row],[Koszt za I przegląd\nbrutto]]+Wykaz_zapasów543[[#This Row],[Koszt za II przegląd\nbrutto]]","v":{"v":0,"d":"0.00 zł"}},"TAK"]
[null,"Centrala wentylacyjna","UNTES URTP 090 ECO SS YB              \ns/n 191845-191224","Bud. 520/6015",1,1,"G4",1,"Raz do roku","NIE",{"v":0,"d":"0.00 zł"},null,{"$f":"Wykaz_zapasów543[[#This Row],[Koszt za I przegląd\nbrutto]]+Wykaz_zapasów543[[#This Row],[Koszt za II przegląd\nbrutto]]","v":{"v":0,"d":"0.00 zł"}},"TAK"]
[null,"Wentylator kanałowy ","BCS-EC ","Bud. 520/6015\npom. F113, F114, F116",3,1,"NIE WYSTĘPUJĄ",0,0,"NIE",{"v":0,"d":"0.00 zł"},null,{"$f":"Wykaz_zapasów543[[#This Row],[Koszt za I przegląd\nbrutto]]+Wykaz_zapasów543[[#This Row],[Koszt za II przegląd\nbrutto]]","v":{"v":0,"d":"0.00 zł"}},"TAK"]
[null,"Wentylator","DOSPEL","Bud. 521/6015\n(Hangar lettki)",2,1,"NIE WYSTĘPUJĄ",0,0,"NIE",{"v":0,"d":"0.00 zł"},null,{"$f":"Wykaz_zapasów543[[#This Row],[Koszt za I przegląd\nbrutto]]+Wykaz_zapasów543[[#This Row],[Koszt za II przegląd\nbrutto]]","v":{"v":0,"d":"0.00 zł"}},"NIE"]
[null,"Centrala wentylacyjna","VENTUS\nVUT 600 PE EC R","Bud. 3/4204",1,1,"G4,F7\nFiltr UF 39x23,5\n      UF 78x12,5","1\n1","Raz do roku","NIE",{"v":0,"d":"0.00 zł"},null,{"$f":"Wykaz_zapasów543[[#This Row],[Koszt za I przegląd\nbrutto]]+Wykaz_zapasów543[[#This Row],[Koszt za II przegląd\nbrutto]]","v":{"v":0,"d":"0.00 zł"}},"NIE"]
[null,"Klimatyzator Split","Jednostka zewnętrzna:\nFUJITSU\ns/n E028375","Bud. 3/4204",1,1,"NIE WYSTĘPUJĄ",0,0,"TAK",{"v":0,"d":"0.00 zł"},null,{"$f":"Wykaz_zapasów543[[#This Row],[Koszt za I przegląd\nbrutto]]+Wykaz_zapasów543[[#This Row],[Koszt za II przegląd\nbrutto]]","v":{"v":0,"d":"0.00 zł"}},"NIE"]
[null,null,"Jednostka wewnętrzna:\nFUJITSU","Bud. 3/4204\n(piwnica)",1,1,"NIE WYSTĘPUJĄ",0,0,"TAK",{"v":0,"d":"0.00 zł"},null,{"$f":"Wykaz_zapasów543[[#This Row],[Koszt za I przegląd\nbrutto]]+Wykaz_zapasów543[[#This Row],[Koszt za II przegląd\nbrutto]]","v":{"v":0,"d":"0.00 zł"}},"NIE"]
[null,"Centrala wentylacyjna","Clmia Gold Optima\nE-NW-13-L-WP-HW-We-2650/2165 \ns/n C9280/22","Bud. 8/4204",1,1,{"$f":"IFERROR(VLOOKUP(Wykaz_zapasów543[[#This Row],[Ilość przeglądów]],#REF!,3,FALSE),\"\")","v":""},null,"Raz do roku","NIE",{"v":0,"d":"0.00 zł"},null,{"$f":"Wykaz_zapasów543[[#This Row],[Koszt za I przegląd\nbrutto]]+Wykaz_zapasów543[[#This Row],[Koszt za II przegląd\nbrutto]]","v":{"v":0,"d":"0.00 zł"}},"TAK"]
[null,"Klimatyzator Multisplit","Jednostka zewnetrzna:\nHISENSE","Bud. 8/4204",1,1,"NIE WYSTĘPUJĄ",0,0,"TAK",{"v":0,"d":"0.00 zł"},null,{"$f":"Wykaz_zapasów543[[#This Row],[Koszt za I przegląd\nbrutto]]+Wykaz_zapasów543[[#This Row],[Koszt za II przegląd\nbrutto]]","v":{"v":0,"d":"0.00 zł"}},"TAK"]
[null,1,"Jednostka wewnętrzna:\nHISENSE","Bud. 8/4205",1,1,"NIE WYSTĘPUJĄ",0,0,"TAK",{"v":0,"d":"0.00 zł"},null,{"$f":"Wykaz_zapasów543[[#This Row],[Koszt za I przegląd\nbrutto]]+Wykaz_zapasów543[[#This Row],[Koszt za II przegląd\nbrutto]]","v":{"v":0,"d":"0.00 zł"}},"TAK"]
[null,2,"Jednostka wewnętrzna:\nHISENSE","Bud. 8/4206",1,1,"NIE WYSTĘPUJĄ",0,0,"TAK",{"v":0,"d":"0.00 zł"},null,{"$f":"Wykaz_zapasów543[[#This Row],[Koszt za I przegląd\nbrutto]]+Wykaz_zapasów543[[#This Row],[Koszt za II przegląd\nbrutto]]","v":{"v":0,"d":"0.00 zł"}},"TAK"]
[null,"Klimatyzator Split","Jednostka zewnetrzna:\nHISENSE","Bud. 8/4207",1,1,"NIE WYSTĘPUJĄ",0,0,"TAK",{"v":0,"d":"0.00 zł"},null,{"$f":"Wykaz_zapasów543[[#This Row],[Koszt za I przegląd\nbrutto]]+Wykaz_zapasów543[[#This Row],[Koszt za II przegląd\nbrutto]]","v":{"v":0,"d":"0.00 zł"}},"TAK"]
[null,null,"Jednostka wewnętrzna:\nHISENSE","Bud. 8/4204",1,1,"NIE WYSTĘPUJĄ",0,0,"TAK",{"v":0,"d":"0.00 zł"},null,{"$f":"Wykaz_zapasów543[[#This Row],[Koszt za I przegląd\nbrutto]]+Wykaz_zapasów543[[#This Row],[Koszt za II przegląd\nbrutto]]","v":{"v":0,"d":"0.00 zł"}},"TAK"]
[null,"Aparat Grzewczo-Wentylacyjny","FLOWAIR","Bud. 8/4204",8,1,"NIE WYSTĘPUJĄ",0,0,"NIE",{"v":0,"d":"0.00 zł"},null,{"$f":"Wykaz_zapasów543[[#This Row],[Koszt za I przegląd\nbrutto]]+Wykaz_zapasów543[[#This Row],[Koszt za II przegląd\nbrutto]]","v":{"v":0,"d":"0.00 zł"}},"TAK"]
[null,"Klimatyzator Split","Jednostka zewnętrzna:\nFUJITSU\ns/n E017098","Bud. 11/4204",1,1,"NIE WYSTĘPUJĄ",0,0,"TAK",{"v":0,"d":"0.00 zł"},null,{"$f":"Wykaz_zapasów543[[#This Row],[Koszt za I przegląd\nbrutto]]+Wykaz_zapasów543[[#This Row],[Koszt za II przegląd\nbrutto]]","v":{"v":0,"d":"0.00 zł"}},"NIE"]
[null,null,"Jednostka wewnętrzna:\nFUJITSU","Bud. 11/4204\npom. 4",1,1,"NIE WYSTĘPUJĄ",0,0,"TAK",{"v":0,"d":"0.00 zł"},null,{"$f":"Wykaz_zapasów543[[#This Row],[Koszt za I przegląd\nbrutto]]+Wykaz_zapasów543[[#This Row],[Koszt za II przegląd\nbrutto]]","v":{"v":0,"d":"0.00 zł"}},"NIE"]
[null,"Centrala wentylacyjna","UNTES  AHU-1 \nUKS 35/KSBO-AA/TF/SL PK 50\ns/n SS 200221 - KLS 2000186 ","Bud. 14/4204\n(dach)",1,1,"NIE WYSTĘPUJĄ",0,0,"TAK",{"v":0,"d":"0.00 zł"},null,{"$f":"Wykaz_zapasów543[[#This Row],[Koszt za I przegląd\nbrutto]]+Wykaz_zapasów543[[#This Row],[Koszt za II przegląd\nbrutto]]","v":{"v":0,"d":"0.00 zł"}},"TAK"]
[null,"Klimatyzator VRF","Jednostka zewnętrzna:\nHisenseAVWT-170HKSS \ncooling 50 kW heating 50 Kw\ns/n QSXJ2WBS2002\n(z chłodnicą do NW AHU-1)","Bud. 14/4204\n(dach)",1,1,"NIE WYSTĘPUJĄ",0,0,"TAK",{"v":0,"d":"0.00 zł"},null,{"$f":"Wykaz_zapasów543[[#This Row],[Koszt za I przegląd\nbrutto]]+Wykaz_zapasów543[[#This Row],[Koszt za II przegląd\nbrutto]]","v":{"v":0,"d":"0.00 zł"}},"TAK"]
[null,"Klimatyzator Split","Jednostka zewnęterzna:\nBEKO BIVPI 091\ns/n 9690842289989","Bud. 14/4204\n(bok budynku)",1,1,"NIE WYSTĘPUJĄ",0,0,"TAK",{"v":0,"d":"0.00 zł"},null,{"$f":"Wykaz_zapasów543[[#This Row],[Koszt za I przegląd\nbrutto]]+Wykaz_zapasów543[[#This Row],[Koszt za II przegląd\nbrutto]]","v":{"v":0,"d":"0.00 zł"}},"TAK"]
[null,null,"Jednostka wewnętrzna:\nBEKO BIVPI 090\ns/n 9690842289989","Bud. 14/4204\n(serwerownia)",1,1,"NIE WYSTĘPUJĄ",0,0,"TAK",{"v":0,"d":"0.00 zł"},null,{"$f":"Wykaz_zapasów543[[#This Row],[Koszt za I przegląd\nbrutto]]+Wykaz_zapasów543[[#This Row],[Koszt za II przegląd\nbrutto]]","v":{"v":0,"d":"0.00 zł"}},"TAK"]
[null,"Klimatyzator Split","Jednostka zewnętrzna:\nFUJITSU\ns/n E019806","Bud. 16/4204",1,1,"NIE WYSTĘPUJĄ",0,0,"TAK",{"v":0,"d":"0.00 zł"},null,{"$f":"Wykaz_zapasów543[[#This Row],[Koszt za I przegląd\nbrutto]]+Wykaz_zapasów543[[#This Row],[Koszt za II przegląd\nbrutto]]","v":{"v":0,"d":"0.00 zł"}},"NIE"]
[null,null,"Jednostka wewnętrzna:\nFUJITSU","Bud. 16/4204\npom. 3",1,1,"NIE WYSTĘPUJĄ",0,0,"TAK",{"v":0,"d":"0.00 zł"},null,{"$f":"Wykaz_zapasów543[[#This Row],[Koszt za I przegląd\nbrutto]]+Wykaz_zapasów543[[#This Row],[Koszt za II przegląd\nbrutto]]","v":{"v":0,"d":"0.00 zł"}},"NIE"]
[null,"Klimatyzator Split","Jednostka zewnętrzna:\nFUJITSU AOY18UNBNL\ns/n E023603","Bud. 18/4204",1,1,"NIE WYSTĘPUJĄ",0,0,"TAK",{"v":0,"d":"0.00 zł"},null,{"$f":"Wykaz_zapasów543[[#This Row],[Koszt za I przegląd\nbrutto]]+Wykaz_zapasów543[[#This Row],[Koszt za II przegląd\nbrutto]]","v":{"v":0,"d":"0.00 zł"}},"NIE"]
[null,null,"Jednostka wewnętrzna:\nFUJITSU ASY18UBBN\ns/n E020100","Bud. 18/4204",1,1,"NIE WYSTĘPUJĄ",0,0,"TAK",{"v":0,"d":"0.00 zł"},null,{"$f":"Wykaz_zapasów543[[#This Row],[Koszt za I przegląd\nbrutto]]+Wykaz_zapasów543[[#This Row],[Koszt za II przegląd\nbrutto]]","v":{"v":0,"d":"0.00 zł"}},"NIE"]
[null,"Klimatyzator Split","Jednostka zewnętrzna:\nFUJITSU AOY18UNBNL\ns/n E023633","Bud. 18/4204",1,1,"NIE WYSTĘPUJĄ",0,0,"TAK",{"v":0,"d":"0.00 zł"},null,{"$f":"Wykaz_zapasów543[[#This Row],[Koszt za I przegląd\nbrutto]]+Wykaz_zapasów543[[#This Row],[Koszt za II przegląd\nbrutto]]","v":{"v":0,"d":"0.00 zł"}},"NIE"]
[null,null,"Jednostka wewnętrzna:\nFUJITSU ASY18UBBN\ns/n E020101","Bud. 18/4204",1,1,"NIE WYSTĘPUJĄ",0,0,"TAK",{"v":0,"d":"0.00 zł"},null,{"$f":"Wykaz_zapasów543[[#This Row],[Koszt za I przegląd\nbrutto]]+Wykaz_zapasów543[[#This Row],[Koszt za II przegląd\nbrutto]]","v":{"v":0,"d":"0.00 zł"}},"NIE"]
[null,"Klimatyzator przenośny","ZIBRO\nP 125","Bud. 18/4204",1,1,"NIE WYSTĘPUJĄ",0,0,"TAK",{"v":0,"d":"0.00 zł"},null,{"$f":"Wykaz_zapasów543[[#This Row],[Koszt za I przegląd\nbrutto]]+Wykaz_zapasów543[[#This Row],[Koszt za II przegląd\nbrutto]]","v":{"v":0,"d":"0.00 zł"}},"NIE"]
[null,"Klimatyzator Split","Jednostka zewnętrzna:\nMAXA BDL35ER\ns/n 4L16600109447","Bud. 18/4205\n(prawa strona)",1,1,"NIE WYSTĘPUJĄ",0,0,"TAK",{"v":0,"d":"0.00 zł"},null,{"$f":"Wykaz_zapasów543[[#This Row],[Koszt za I przegląd\nbrutto]]+Wykaz_zapasów543[[#This Row],[Koszt za II przegląd\nbrutto]]","v":{"v":0,"d":"0.00 zł"}}]
[null,null,"Jednostka wewnętrzna:\nMAXA BDL35ER\ns/n","Bud. 18/4206",1,1,"NIE WYSTĘPUJĄ",0,0,"TAK",{"v":0,"d":"0.00 zł"},null,{"$f":"Wykaz_zapasów543[[#This Row],[Koszt za I przegląd\nbrutto]]+Wykaz_zapasów543[[#This Row],[Koszt za II przegląd\nbrutto]]","v":{"v":0,"d":"0.00 zł"}}]
[null,"Klimatyzator Split","Jednostka zewnętrzna:\nMAXA BDL35ER\ns/n 4L16600109464","Bud. 18/4207\n(lewa strona)",1,1,"NIE WYSTĘPUJĄ",0,0,"TAK",{"v":0,"d":"0.00 zł"},null,{"$f":"Wykaz_zapasów543[[#This Row],[Koszt za I przegląd\nbrutto]]+Wykaz_zapasów543[[#This Row],[Koszt za II przegląd\nbrutto]]","v":{"v":0,"d":"0.00 zł"}}]
[null,null,"Jednostka wewnętrzna:\nMAXA BDL35ER\ns/n","Bud. 18/4208",1,1,"NIE WYSTĘPUJĄ",0,0,"TAK",{"v":0,"d":"0.00 zł"},null,{"$f":"Wykaz_zapasów543[[#This Row],[Koszt za I przegląd\nbrutto]]+Wykaz_zapasów543[[#This Row],[Koszt za II przegląd\nbrutto]]","v":{"v":0,"d":"0.00 zł"}}]
[null,"Centrala wentylacyjna ","Clmia Gold Optima\nNW 2210-P-WP-HW-HC 7040/6955\ns/n C9285/22","Bud.33/4208",1,1,"F7/kasetowy\n96x590x590\n96x490x590\n96x297x590\nM5/kaswtowy\n100x590x590\n100x490x590\n100x287x590","\n1\n1\n1\n\n1\n1\n1","Raz do roku","NIE",{"v":0,"d":"0.00 zł"},null,{"$f":"Wykaz_zapasów543[[#This Row],[Koszt za I przegląd\nbrutto]]+Wykaz_zapasów543[[#This Row],[Koszt za II przegląd\nbrutto]]","v":{"v":0,"d":"0.00 zł"}},"TAK"]
[null,"Klimatyzator Multisplit","Jednostka zewnętrzna:\nHisense\ns/n","Bud.33/4208\n(elewacja budynku)",1,1,"NIE WYSTĘPUJĄ",0,0,"TAK",{"v":0,"d":"0.00 zł"},null,{"$f":"Wykaz_zapasów543[[#This Row],[Koszt za I przegląd\nbrutto]]+Wykaz_zapasów543[[#This Row],[Koszt za II przegląd\nbrutto]]","v":{"v":0,"d":"0.00 zł"}},"TAK"]
[null,1,"Jednostka wewnętrzna:\nHisense \ns/n","Bud.33/4209",1,1,"NIE WYSTĘPUJĄ",0,0,"TAK",{"v":0,"d":"0.00 zł"},null,{"$f":"Wykaz_zapasów543[[#This Row],[Koszt za I przegląd\nbrutto]]+Wykaz_zapasów543[[#This Row],[Koszt za II przegląd\nbrutto]]","v":{"v":0,"d":"0.00 zł"}},"TAK"]
[null,2,"Jednostka wewnętrzna:\nHisense \ns/n","Bud.33/4210",1,1,"NIE WYSTĘPUJĄ",0,0,"TAK",{"v":0,"d":"0.00 zł"},null,{"$f":"Wykaz_zapasów543[[#This Row],[Koszt za I przegląd\nbrutto]]+Wykaz_zapasów543[[#This Row],[Koszt za II przegląd\nbrutto]]","v":{"v":0,"d":"0.00 zł"}},"TAK"]
[null,"Klimatyzator Split","Jednostka zewnętrzna:\nHisense\ns/n","Bud.33/4208\n(elewacja budynku)",1,1,"NIE WYSTĘPUJĄ",0,0,"TAK",{"v":0,"d":"0.00 zł"},null,{"$f":"Wykaz_zapasów543[[#This Row],[Koszt za I przegląd\nbrutto]]+Wykaz_zapasów543[[#This Row],[Koszt za II przegląd\nbrutto]]","v":{"v":0,"d":"0.00 zł"}},"TAK"]
[null,null,"Jednostka wewnętrzna:\nHisense \ns/n","Bud.33/4209",1,1,"NIE WYSTĘPUJĄ",0,0,"TAK",{"v":0,"d":"0.00 zł"},null,{"$f":"Wykaz_zapasów543[[#This Row],[Koszt za I przegląd\nbrutto]]+Wykaz_zapasów543[[#This Row],[Koszt za II przegląd\nbrutto]]","v":{"v":0,"d":"0.00 zł"}},"TAK"]
[null,"Aparat Grzewczo-Wentylacyjny","FLOWAIR","Bud.33/4209",3,1,"NIE WYSTĘPUJĄ",0,0,"NIE",{"v":0,"d":"0.00 zł"},null,{"$f":"Wykaz_zapasów543[[#This Row],[Koszt za I przegląd\nbrutto]]+Wykaz_zapasów543[[#This Row],[Koszt za II przegląd\nbrutto]]","v":{"v":0,"d":"0.00 zł"}},"TAK"]
[null,"Centrala wentylacyjna ","Clmia Gold Optima\nE-NW-11-P-WP-Hw-We-1740/1255\ns/n C9281/22","Bud.34/4209",1,1,"F7 kasetowy\n96x745x28\nM5 kasetowy\n100x745x287 ","1\n\n1","Raz do roku","NIE",{"v":0,"d":"0.00 zł"},null,{"$f":"Wykaz_zapasów543[[#This Row],[Koszt za I przegląd\nbrutto]]+Wykaz_zapasów543[[#This Row],[Koszt za II przegląd\nbrutto]]","v":{"v":0,"d":"0.00 zł"}},"TAK"]
[null,"Klimatyzator Multisplit","Jednostka zewnętrzna:\nHisense\ns/n","Bud.34/4208\n(elewacja budynku)",1,1,"NIE WYSTĘPUJĄ",0,0,"TAK",{"v":0,"d":"0.00 zł"},null,{"$f":"Wykaz_zapasów543[[#This Row],[Koszt za I przegląd\nbrutto]]+Wykaz_zapasów543[[#This Row],[Koszt za II przegląd\nbrutto]]","v":{"v":0,"d":"0.00 zł"}},"TAK"]
[null,1,"Jednostka wewnętrzna:\nHisense \ns/n","Bud.34/4209",1,1,"NIE WYSTĘPUJĄ",0,0,"TAK",{"v":0,"d":"0.00 zł"},null,{"$f":"Wykaz_zapasów543[[#This Row],[Koszt za I przegląd\nbrutto]]+Wykaz_zapasów543[[#This Row],[Koszt za II przegląd\nbrutto]]","v":{"v":0,"d":"0.00 zł"}},"TAK"]
[null,2,"Jednostka wewnętrzna:\nHisense \ns/n","Bud.34/4210",1,1,"NIE WYSTĘPUJĄ",0,0,"TAK",{"v":0,"d":"0.00 zł"},null,{"$f":"Wykaz_zapasów543[[#This Row],[Koszt za I przegląd\nbrutto]]+Wykaz_zapasów543[[#This Row],[Koszt za II przegląd\nbrutto]]","v":{"v":0,"d":"0.00 zł"}},"TAK"]
[null,"Klimatyzator Split","Jednostka zewnętrzna:\nHisense\ns/n","Bud.344208\n(elewacja budynku)",1,1,"NIE WYSTĘPUJĄ",0,0,"TAK",{"v":0,"d":"0.00 zł"},null,{"$f":"Wykaz_zapasów543[[#This Row],[Koszt za I przegląd\nbrutto]]+Wykaz_zapasów543[[#This Row],[Koszt za II przegląd\nbrutto]]","v":{"v":0,"d":"0.00 zł"}},"TAK"]
[null,null,"Jednostka wewnętrzna:\nHisense \ns/n","Bud.34/4209",1,1,"NIE WYSTĘPUJĄ",0,0,"TAK",{"v":0,"d":"0.00 zł"},null,{"$f":"Wykaz_zapasów543[[#This Row],[Koszt za I przegląd\nbrutto]]+Wykaz_zapasów543[[#This Row],[Koszt za II przegląd\nbrutto]]","v":{"v":0,"d":"0.00 zł"}},"TAK"]
[null,"Aparat Grzewczo-Wentylacyjny","FLOWAIR","Bud.34/4209",2,1,"NIE WYSTĘPUJĄ",0,0,"NIE",{"$f":"K5:K1609","v":{"v":0,"d":"0.00 zł"}},null,{"v":0,"d":"0.00 zł"},"TAK"]
[null,"Centrala wentylacyjna","VTS VENTUS VVS650\ns/n 8-A10-21-1V650-00004","Bud.A30/8711 pom.225",1,2,{"$f":"IFERROR(VLOOKUP(Wykaz_zapasów543[[#This Row],[Ilość przeglądów]],#REF!,3,FALSE),\"\")","v":""},null,2,"NIE",null,null,{"$f":"Wykaz_zapasów543[[#This Row],[Koszt za I przegląd\nbrutto]]+Wykaz_zapasów543[[#This Row],[Koszt za II przegląd\nbrutto]]","v":{"v":0,"d":"0.00 zł"}},"TAK"]
[null,"Centrala wentylacyjna","VTS-VENTUS VVS075\nS/N 8-A10-21-1V075-00167","Bud.A30/8711 pom.225",1,2,{"$f":"IFERROR(VLOOKUP(Wykaz_zapasów543[[#This Row],[Ilość przeglądów]],#REF!,3,FALSE),\"\")","v":""},null,2,"NIE",null,null,{"$f":"Wykaz_zapasów543[[#This Row],[Koszt za I przegląd\nbrutto]]+Wykaz_zapasów543[[#This Row],[Koszt za II przegląd\nbrutto]]","v":{"v":0,"d":"0.00 zł"}},"TAK"]
[null,"Centrala wentylacyjna","VTS- VENTUS VVS021\ns/n 8-A10-21-1V021-00447","Bud.A30/8711 pom.165",1,2,{"$f":"IFERROR(VLOOKUP(Wykaz_zapasów543[[#This Row],[Ilość przeglądów]],#REF!,3,FALSE),\"\")","v":""},null,2,"NIE",null,null,{"$f":"Wykaz_zapasów543[[#This Row],[Koszt za I przegląd\nbrutto]]+Wykaz_zapasów543[[#This Row],[Koszt za II przegląd\nbrutto]]","v":{"v":0,"d":"0.00 zł"}},"TAK"]
[null,"Centrala wentylacyjna","VTS- VENTUS VVS500\ns/n 8-A10-21-1V500-00022","Bud.A30/8711 pom.102",1,2,{"$f":"IFERROR(VLOOKUP(Wykaz_zapasów543[[#This Row],[Ilość przeglądów]],#REF!,3,FALSE),\"\")","v":""},null,2,"NIE",null,null,{"$f":"Wykaz_zapasów543[[#This Row],[Koszt za I przegląd\nbrutto]]+Wykaz_zapasów543[[#This Row],[Koszt za II przegląd\nbrutto]]","v":{"v":0,"d":"0.00 zł"}},"TAK"]
[null,"Centrala wentylacyjna","VTS -VENTUS VVS300\ns/n 8-A10-21-1V300-0027","Bud.A30/8711 pom. 116",1,2,{"$f":"IFERROR(VLOOKUP(Wykaz_zapasów543[[#This Row],[Ilość przeglądów]],#REF!,3,FALSE),\"\")","v":""},null,2,"NIE",null,null,{"$f":"Wykaz_zapasów543[[#This Row],[Koszt za I przegląd\nbrutto]]+Wykaz_zapasów543[[#This Row],[Koszt za II przegląd\nbrutto]]","v":{"v":0,"d":"0.00 zł"}},"TAK"]
[null,"Wentylator kanałowy ","Harmann\nJETTECC 315/35005\ns/n 210719-N00038-268","Bud.A30/8711 pom.135",1,2,"NIE WYSTĘPUJĄ",0,0,"NIE",null,null,{"$f":"Wykaz_zapasów543[[#This Row],[Koszt za I przegląd\nbrutto]]+Wykaz_zapasów543[[#This Row],[Koszt za II przegląd\nbrutto]]","v":{"v":0,"d":"0.00 zł"}},"TAK"]
[null,"Wentylator kanałowy \n(dachowy, przeciwybuchowy)","Venture Industries CVAT/4-2000/315N D 0.18 EX \ns/n 5137827800","Bud.A30/8711 pom.139",1,2,"NIE WYSTĘPUJĄ",0,0,"NIE",null,null,{"$f":"Wykaz_zapasów543[[#This Row],[Koszt za I przegląd\nbrutto]]+Wykaz_zapasów543[[#This Row],[Koszt za II przegląd\nbrutto]]","v":{"v":0,"d":"0.00 zł"}},"TAK"]
[null,"Wentylator kanałowy","Harmann  RM 160/450\ns/n 220615-A00100-992","Bud.A30/8711 pom.103",1,2,"NIE WYSTĘPUJĄ",0,0,"NIE",null,null,{"$f":"Wykaz_zapasów543[[#This Row],[Koszt za I przegląd\nbrutto]]+Wykaz_zapasów543[[#This Row],[Koszt za II przegląd\nbrutto]]","v":{"v":0,"d":"0.00 zł"}},"TAK"]
[null,"Wentylator kanałowy","Harmann MBC 560/15500TEC\ns/n 210806-K00013-669","Bud.A30/8711 pom.143",1,2,"NIE WYSTĘPUJĄ",0,0,"NIE",null,null,{"$f":"Wykaz_zapasów543[[#This Row],[Koszt za I przegląd\nbrutto]]+Wykaz_zapasów543[[#This Row],[Koszt za II przegląd\nbrutto]]","v":{"v":0,"d":"0.00 zł"}},"TAK"]
[null,"Wentylator kanałowy","Harmann MBC 630/17700TEC\ns/n 210806-K00012-669","Bud.A30/8711 pom.144",1,2,"NIE WYSTĘPUJĄ",0,0,"NIE",null,null,{"$f":"Wykaz_zapasów543[[#This Row],[Koszt za I przegląd\nbrutto]]+Wykaz_zapasów543[[#This Row],[Koszt za II przegląd\nbrutto]]","v":{"v":0,"d":"0.00 zł"}},"TAK"]
[null,"Wentylator kanałowy","Harmann JETTEC 315/2300S\ns/n 210715-N00060-377","Bud.A30/8711 pom.132",1,2,"NIE WYSTĘPUJĄ",0,0,"NIE",null,null,{"$f":"Wykaz_zapasów543[[#This Row],[Koszt za I przegląd\nbrutto]]+Wykaz_zapasów543[[#This Row],[Koszt za II przegląd\nbrutto]]","v":{"v":0,"d":"0.00 zł"}}]
[null,"Wentylator kanałowy","Harmann RM 200/1000\ns/n 210712-A00610-1037","Bud.A30/8711 pom.173",1,2,"NIE WYSTĘPUJĄ",0,0,"NIE",null,null,{"$f":"Wykaz_zapasów543[[#This Row],[Koszt za I przegląd\nbrutto]]+Wykaz_zapasów543[[#This Row],[Koszt za II przegląd\nbrutto]]","v":{"v":0,"d":"0.00 zł"}},"TAK"]
[null,"Wentylator kanałowy","Harmann JETTEC 710/23100F\ns/n 210804-J00005-386","Bud.A30/8711 pom.156",1,2,"NIE WYSTĘPUJĄ",0,0,"NIE",null,null,{"$f":"Wykaz_zapasów543[[#This Row],[Koszt za I przegląd\nbrutto]]+Wykaz_zapasów543[[#This Row],[Koszt za II przegląd\nbrutto]]","v":{"v":0,"d":"0.00 zł"}},"TAK"]
[null,"Wentylator kanałowy","Harmann JETTEC 710/23100F\ns/n 210804-J00001-386","Bud.A30/8711 pom.156",1,2,"NIE WYSTĘPUJĄ",0,0,"NIE",null,null,{"$f":"Wykaz_zapasów543[[#This Row],[Koszt za I przegląd\nbrutto]]+Wykaz_zapasów543[[#This Row],[Koszt za II przegląd\nbrutto]]","v":{"v":0,"d":"0.00 zł"}},"TAK"]
[null,"Wentylator kanałowy","Harmann JETTEC 710/23100F\ns/n 210804-J00004-386","Bud.A30/8711 pom.156",1,2,"NIE WYSTĘPUJĄ",0,0,"NIE",null,null,{"$f":"Wykaz_zapasów543[[#This Row],[Koszt za I przegląd\nbrutto]]+Wykaz_zapasów543[[#This Row],[Koszt za II przegląd\nbrutto]]","v":{"v":0,"d":"0.00 zł"}}]
[null,"Wentylator kanałowy","Harmann JETTEC 710/23100F\ns/n 210804-J00003-386","Bud.A30/8711 pom.156",1,2,"NIE WYSTĘPUJĄ",0,0,"NIE",null,null,{"$f":"Wykaz_zapasów543[[#This Row],[Koszt za I przegląd\nbrutto]]+Wykaz_zapasów543[[#This Row],[Koszt za II przegląd\nbrutto]]","v":{"v":0,"d":"0.00 zł"}},"TAK"]
[null,"Wentylator kanałowy","Harmann JETTEC 710/23100F\ns/n 210804-J00002-386","Bud.A30/8711 pom.156",1,2,"NIE WYSTĘPUJĄ",0,0,"NIE",null,null,{"$f":"Wykaz_zapasów543[[#This Row],[Koszt za I przegląd\nbrutto]]+Wykaz_zapasów543[[#This Row],[Koszt za II przegląd\nbrutto]]","v":{"v":0,"d":"0.00 zł"}},"TAK"]
[null,"Wentylator kanałowy","Harmann JETTEC 710/23100F\ns/n 210804-J00006-386","Bud.A30/8711 pom.156",1,2,"NIE WYSTĘPUJĄ",0,0,"NIE",null,null,{"$f":"Wykaz_zapasów543[[#This Row],[Koszt za I przegląd\nbrutto]]+Wykaz_zapasów543[[#This Row],[Koszt za II przegląd\nbrutto]]","v":{"v":0,"d":"0.00 zł"}},"TAK"]
[null,"Wentylator kanałowy","Harmann MBC 450/5300S\ns/n 210805-K00053522","Bud.A30/8711 pom.172",null,2,"NIE WYSTĘPUJĄ",0,0,"NIE",null,null,{"$f":"Wykaz_zapasów543[[#This Row],[Koszt za I przegląd\nbrutto]]+Wykaz_zapasów543[[#This Row],[Koszt za II przegląd\nbrutto]]","v":{"v":0,"d":"0.00 zł"}}]
[null,"Wentylator kanałowy","Harmann MBC 450/5300S\ns/n 210805-K00055-522","Bud.A30/8711 pom.175",1,2,"NIE WYSTĘPUJĄ",0,0,"NIE",null,null,{"$f":"Wykaz_zapasów543[[#This Row],[Koszt za I przegląd\nbrutto]]+Wykaz_zapasów543[[#This Row],[Koszt za II przegląd\nbrutto]]","v":{"v":0,"d":"0.00 zł"}},"TAK"]
[null,"Wentylator kanałowy","Venture Industries TD-1100/250 ATEX\ns/n 1010097938","Bud.A30/8711 pom.161",1,2,"NIE WYSTĘPUJĄ",0,0,"NIE",null,null,{"$f":"Wykaz_zapasów543[[#This Row],[Koszt za I przegląd\nbrutto]]+Wykaz_zapasów543[[#This Row],[Koszt za II przegląd\nbrutto]]","v":{"v":0,"d":"0.00 zł"}},"TAK"]
[null,"Wentylator kanałowy","Harmann RM 200/800\ns/n 210706-A00336-1023","Bud.A30/8711 pom.168/169",1,2,"NIE WYSTĘPUJĄ",0,0,"NIE",null,null,{"$f":"Wykaz_zapasów543[[#This Row],[Koszt za I przegląd\nbrutto]]+Wykaz_zapasów543[[#This Row],[Koszt za II przegląd\nbrutto]]","v":{"v":0,"d":"0.00 zł"}},"TAK"]
[null,"Wentylator kanałowy","Harmann MBC 450/5300S\ns/n 210805-K00054-522"," Bud. A30/8711 pom.165",1,2,"NIE WYSTĘPUJĄ",0,0,"NIE",null,null,{"$f":"Wykaz_zapasów543[[#This Row],[Koszt za I przegląd\nbrutto]]+Wykaz_zapasów543[[#This Row],[Koszt za II przegląd\nbrutto]]","v":{"v":0,"d":"0.00 zł"}},"TAK"]
[null,"Wentylator kanałowy","Harmann JETTEC 315/2300S\ns/n 217015-N00058-377"," Bud. A30/8711 pom.213/216/217",1,2,"NIE WYSTĘPUJĄ",0,0,"NIE",null,null,{"$f":"Wykaz_zapasów543[[#This Row],[Koszt za I przegląd\nbrutto]]+Wykaz_zapasów543[[#This Row],[Koszt za II przegląd\nbrutto]]","v":{"v":0,"d":"0.00 zł"}},"TAK"]
[null,"Wentylator kanałowy","Harmann RM 200/800\ns/n 210706-A00342-1023","Bud.A30/8711 pom.208",1,2,"NIE WYSTĘPUJĄ",0,0,"NIE",null,null,{"$f":"Wykaz_zapasów543[[#This Row],[Koszt za I przegląd\nbrutto]]+Wykaz_zapasów543[[#This Row],[Koszt za II przegląd\nbrutto]]","v":{"v":0,"d":"0.00 zł"}},"TAK"]
[null,"Wentylator kanałowy","Harmann JETTEC 355/2600S\ns/n 210706-N00028-268","Bud.A30/8711 pom.173",1,2,"NIE WYSTĘPUJĄ",0,0,"NIE",null,null,{"$f":"Wykaz_zapasów543[[#This Row],[Koszt za I przegląd\nbrutto]]+Wykaz_zapasów543[[#This Row],[Koszt za II przegląd\nbrutto]]","v":{"v":0,"d":"0.00 zł"}},"TAK"]
[null,"Komora wentylatorowa\nOdciąg spalin","Klimawent WPA-BOX-14\ns/n 57/2021","Bud.A30/8711 pom.156",1,2,"NIE WYSTĘPUJĄ",0,0,"NIE",null,null,{"$f":"Wykaz_zapasów543[[#This Row],[Koszt za I przegląd\nbrutto]]+Wykaz_zapasów543[[#This Row],[Koszt za II przegląd\nbrutto]]","v":{"v":0,"d":"0.00 zł"}},"TAK"]
[null,"Komora wentylatorowa\nOdciąg spalin","Klimawent WPA-BOX-14\ns/n 59/2021","Bud.A30/8711 pom.156",1,2,"NIE WYSTĘPUJĄ",0,0,"NIE",null,null,{"$f":"Wykaz_zapasów543[[#This Row],[Koszt za I przegląd\nbrutto]]+Wykaz_zapasów543[[#This Row],[Koszt za II przegląd\nbrutto]]","v":{"v":0,"d":"0.00 zł"}},"TAK"]
[null,"Komora wentylatorowa\nOdciąg spalin","Klimawent WPA-BOX-14\ns/n 58/2021","Bud.A30/8711 pom.156",1,2,"NIE WYSTĘPUJĄ",0,0,"NIE",null,null,{"$f":"Wykaz_zapasów543[[#This Row],[Koszt za I przegląd\nbrutto]]+Wykaz_zapasów543[[#This Row],[Koszt za II przegląd\nbrutto]]","v":{"v":0,"d":"0.00 zł"}},"TAK"]
[null,"Komora wentylatorowa\nOdciąg spalin","Klimawent WPA-BOX-14\ns/n 55/2021","Bud.A30/8711 pom.156",1,2,"NIE WYSTĘPUJĄ",0,0,"NIE",null,null,{"$f":"Wykaz_zapasów543[[#This Row],[Koszt za I przegląd\nbrutto]]+Wykaz_zapasów543[[#This Row],[Koszt za II przegląd\nbrutto]]","v":{"v":0,"d":"0.00 zł"}},"TAK"]
[null,"Komora wentylatorowa\nOdciąg spalin","Klimawent WPA-BOX-14\ns/n 56/2021","Bud.A30/8711 pom.156",1,2,"NIE WYSTĘPUJĄ",0,0,"NIE",null,null,{"$f":"Wykaz_zapasów543[[#This Row],[Koszt za I przegląd\nbrutto]]+Wykaz_zapasów543[[#This Row],[Koszt za II przegląd\nbrutto]]","v":{"v":0,"d":"0.00 zł"}},"TAK"]
[null,"Wentylator\nSystemy wentylacji przemysłowej i odciagów spalin","Berliner Luft-RE 72-560-d-2-15\ns/n 2854","Bud.A30/8711 pom.156\nNA ZEWNĄTRZ",1,2,"NIE WYSTĘPUJĄ",0,0,"NIE",null,null,{"$f":"Wykaz_zapasów543[[#This Row],[Koszt za I przegląd\nbrutto]]+Wykaz_zapasów543[[#This Row],[Koszt za II przegląd\nbrutto]]","v":{"v":0,"d":"0.00 zł"}},"TAK"]
[null,"Wentylator\nSystemy wentylacji przemysłowej i odciagów spalin","Berliner Luft-RE 72-560-d-2-15\ns/n 2616","Bud.A30/8711 pom.156\nNA ZEWNĄTRZ",1,2,"NIE WYSTĘPUJĄ",0,0,"NIE",null,null,{"$f":"Wykaz_zapasów543[[#This Row],[Koszt za I przegląd\nbrutto]]+Wykaz_zapasów543[[#This Row],[Koszt za II przegląd\nbrutto]]","v":{"v":0,"d":"0.00 zł"}},"TAK"]
[null,"Wentylator\nSystemy wentylacji przemysłowej i odciagów spalin","Berliner Luft-RE 72-560-d-2-15\ns/n 2828","Bud.A30/8711 pom.156\nNA ZEWNĄTRZ",1,2,"NIE WYSTĘPUJĄ",0,0,"NIE",null,null,{"$f":"Wykaz_zapasów543[[#This Row],[Koszt za I przegląd\nbrutto]]+Wykaz_zapasów543[[#This Row],[Koszt za II przegląd\nbrutto]]","v":{"v":0,"d":"0.00 zł"}},"TAK"]
[null,"Klimatyzacja","Jednostka zewnętrzna\nDaikin - RZAG100N7V1B EX\ns/n 2104088      ","Bud.A30/8711",1,2,"NIE WYSTĘPUJĄ",0,0,"TAK",null,null,{"$f":"Wykaz_zapasów543[[#This Row],[Koszt za I przegląd\nbrutto]]+Wykaz_zapasów543[[#This Row],[Koszt za II przegląd\nbrutto]]","v":{"v":0,"d":"0.00 zł"}},"TAK"]
[null,null,"Jednostka wewnętrzna\nDaikin - FBA100A2VEB EX\ns/n J025774","Bud.A30/8711 pom.139",1,2,"NIE WYSTĘPUJĄ",0,0,"TAK",null,null,{"$f":"Wykaz_zapasów543[[#This Row],[Koszt za I przegląd\nbrutto]]+Wykaz_zapasów543[[#This Row],[Koszt za II przegląd\nbrutto]]","v":{"v":0,"d":"0.00 zł"}},"TAK"]
[null,"Klimatyzacja","Jedonstka zewnętrzna\nDaikin - RZAG71N7V1B\ns/n 2105047"," Bud. A30/8711",1,2,"NIE WYSTĘPUJĄ",0,0,"TAK",null,null,{"$f":"Wykaz_zapasów543[[#This Row],[Koszt za I przegląd\nbrutto]]+Wykaz_zapasów543[[#This Row],[Koszt za II przegląd\nbrutto]]","v":{"v":0,"d":"0.00 zł"}},"TAK"]
[null,null,"Jednostka wewnętrzna\nDaikin - FAA71AUVEB\ns/n E021071"," Bud. A30/8711 pom.104",1,2,"NIE WYSTĘPUJĄ",0,0,"TAK",null,null,{"$f":"Wykaz_zapasów543[[#This Row],[Koszt za I przegląd\nbrutto]]+Wykaz_zapasów543[[#This Row],[Koszt za II przegląd\nbrutto]]","v":{"v":0,"d":"0.00 zł"}},"TAK"]
[null,"Klimatyzacja","Jednostka zewnętrzna\nDaikin - RXM50R2V1B\ns/n J032749"," Bud. A60/8711",1,2,"NIE WYSTĘPUJĄ",0,0,"TAK",null,null,{"$f":"Wykaz_zapasów543[[#This Row],[Koszt za I przegląd\nbrutto]]+Wykaz_zapasów543[[#This Row],[Koszt za II przegląd\nbrutto]]","v":{"v":0,"d":"0.00 zł"}},"TAK"]
[null,null,"Jednostka wewnętrzna \nDaikin - FBA50A2VEB9\ns/n J024787"," Bud. A60/8711 pom.140",1,2,"NIE WYSTĘPUJĄ",0,0,"TAK",null,null,{"$f":"Wykaz_zapasów543[[#This Row],[Koszt za I przegląd\nbrutto]]+Wykaz_zapasów543[[#This Row],[Koszt za II przegląd\nbrutto]]","v":{"v":0,"d":"0.00 zł"}},"TAK"]
[null,"Klimatyzacja ","Jednostka zewnętrzna\nDaikin - RXM50R2V1B\ns/n J032681"," Bud. A60/8711",1,2,"NIE WYSTĘPUJĄ",0,0,"TAK",null,null,{"$f":"Wykaz_zapasów543[[#This Row],[Koszt za I przegląd\nbrutto]]+Wykaz_zapasów543[[#This Row],[Koszt za II przegląd\nbrutto]]","v":{"v":0,"d":"0.00 zł"}},"TAK"]
[null,null,"Jednostka wewnętrzna\nDaikin - FBA50A2VEB9\ns/n J024668"," Bud. A60/8711 pom.143",1,2,"NIE WYSTĘPUJĄ",0,0,"TAK",null,null,{"$f":"Wykaz_zapasów543[[#This Row],[Koszt za I przegląd\nbrutto]]+Wykaz_zapasów543[[#This Row],[Koszt za II przegląd\nbrutto]]","v":{"v":0,"d":"0.00 zł"}},"TAK"]
[null,"Klimatyzacja","Jednostka zewnętrzna\nDaikin - RZAG50A2V1B\ns/n J007275"," Bud. A60/8711",1,2,"NIE WYSTĘPUJĄ",0,0,"TAK",null,null,{"$f":"Wykaz_zapasów543[[#This Row],[Koszt za I przegląd\nbrutto]]+Wykaz_zapasów543[[#This Row],[Koszt za II przegląd\nbrutto]]","v":{"v":0,"d":"0.00 zł"}},"TAK"]
[null,null,"Jednostka wewnętrzna\nDaikin - FTXM50R2V1B\ns/n J026899"," Bud. A60/8711 pom.133",1,2,"NIE WYSTĘPUJĄ",0,0,"TAK",null,null,{"$f":"Wykaz_zapasów543[[#This Row],[Koszt za I przegląd\nbrutto]]+Wykaz_zapasów543[[#This Row],[Koszt za II przegląd\nbrutto]]","v":{"v":0,"d":"0.00 zł"}},"TAK"]
[null,"Klimatyzacja","Jednostka zewnętrzna\nDaikin - RZAG71N7V1B\ns/n 2105060","Bud. A30/8711",1,2,"NIE WYSTĘPUJĄ",0,0,"TAK",null,null,{"$f":"Wykaz_zapasów543[[#This Row],[Koszt za I przegląd\nbrutto]]+Wykaz_zapasów543[[#This Row],[Koszt za II przegląd\nbrutto]]","v":{"v":0,"d":"0.00 zł"}},"TAK"]
[null,null,"Jednostka wewnętrzna\nDaikin - FBA71A2VEB9\ns/n J028359","Bud. A30/8711 pom.174",1,2,"NIE WYSTĘPUJĄ",0,0,"TAK",null,null,{"$f":"Wykaz_zapasów543[[#This Row],[Koszt za I przegląd\nbrutto]]+Wykaz_zapasów543[[#This Row],[Koszt za II przegląd\nbrutto]]","v":{"v":0,"d":"0.00 zł"}},"TAK"]
[null,"Klimatyzacja","Jednostka zewnętrzna\nDaikin - RXM50R2V1B\ns/n J032748"," Bud. A30/8711",1,2,"NIE WYSTĘPUJĄ",0,0,"TAK",null,null,{"$f":"Wykaz_zapasów543[[#This Row],[Koszt za I przegląd\nbrutto]]+Wykaz_zapasów543[[#This Row],[Koszt za II przegląd\nbrutto]]","v":{"v":0,"d":"0.00 zł"}},"TAK"]
[null,null,"Jednostka wewnętrzna\nDaikin - FTXM50R2V1B\ns/n"," Bud. A30/8711 pom.131",1,2,"NIE WYSTĘPUJĄ",0,0,"TAK",null,null,{"$f":"Wykaz_zapasów543[[#This Row],[Koszt za I przegląd\nbrutto]]+Wykaz_zapasów543[[#This Row],[Koszt za II przegląd\nbrutto]]","v":{"v":0,"d":"0.00 zł"}},"TAK"]
[null,"Klimatyzacja","Jednostka zewnętrzna\nDaikin - RZAG50A2V1B\ns/n J007277"," Bud. A30/8711",1,2,"NIE WYSTĘPUJĄ",0,0,"TAK",null,null,{"$f":"Wykaz_zapasów543[[#This Row],[Koszt za I przegląd\nbrutto]]+Wykaz_zapasów543[[#This Row],[Koszt za II przegląd\nbrutto]]","v":{"v":0,"d":"0.00 zł"}},"TAK"]
[null,null,"Jednostka wewnętrzna\nDaikin - FTXM50R2V1B\ns/n J024430"," Bud. A30/8711 pom.204",1,2,"NIE WYSTĘPUJĄ",0,0,"TAK",null,null,{"$f":"Wykaz_zapasów543[[#This Row],[Koszt za I przegląd\nbrutto]]+Wykaz_zapasów543[[#This Row],[Koszt za II przegląd\nbrutto]]","v":{"v":0,"d":"0.00 zł"}},"TAK"]
[null,"Klimatyzacja","Jednostka zewnętrzna\nDaikin - RZAG140N7V1B\ns/n 2101310"," Bud.A30/8711 ",1,2,"NIE WYSTĘPUJĄ",0,0,"TAK",null,null,{"$f":"Wykaz_zapasów543[[#This Row],[Koszt za I przegląd\nbrutto]]+Wykaz_zapasów543[[#This Row],[Koszt za II przegląd\nbrutto]]","v":{"v":0,"d":"0.00 zł"}},"TAK"]
[null,null,"Jednostka wewnętrzna\nDaikin - FBA140A2VEB\ns/n"," Bud.A30/8711 pom.219",1,2,"NIE WYSTĘPUJĄ",0,0,"TAK",null,null,{"$f":"Wykaz_zapasów543[[#This Row],[Koszt za I przegląd\nbrutto]]+Wykaz_zapasów543[[#This Row],[Koszt za II przegląd\nbrutto]]","v":{"v":0,"d":"0.00 zł"}},"TAK"]
[null,"Klimatyzacja","Jednostka zewnętrzna\nDaikin - RZAG100N7V1B\ns/n 2104081"," Bud.A30/8711 ",1,2,"NIE WYSTĘPUJĄ",0,0,"TAK",null,null,{"$f":"Wykaz_zapasów543[[#This Row],[Koszt za I przegląd\nbrutto]]+Wykaz_zapasów543[[#This Row],[Koszt za II przegląd\nbrutto]]","v":{"v":0,"d":"0.00 zł"}},"TAK"]
[null,null,"Jednostka wewnętrzna\nDaikin - FAA100AUVEB\ns/n E024185"," Bud.A30/8711 pom. 105",1,2,"NIE WYSTĘPUJĄ",0,0,"TAK",null,null,{"$f":"Wykaz_zapasów543[[#This Row],[Koszt za I przegląd\nbrutto]]+Wykaz_zapasów543[[#This Row],[Koszt za II przegląd\nbrutto]]","v":{"v":0,"d":"0.00 zł"}},"TAK"]
[null,"Wentylator wyciągowy","Harmann - AXEN.L\ns/n 206093, 206104,  \n206097,  206083,  \n206109,  206085 "," Bud.A35-1/8711 pom. 101",6,2,"NIE WYSTĘPUJĄ",0,0,"NIE",null,null,{"$f":"Wykaz_zapasów543[[#This Row],[Koszt za I przegląd\nbrutto]]+Wykaz_zapasów543[[#This Row],[Koszt za II przegląd\nbrutto]]","v":{"v":0,"d":"0.00 zł"}},"TAK"]
[null,"Wentylator wyciągowy","Harmann - RM 200/950EC\ns/n 210702-F00087-756"," Bud.A35-1/8711 pom. 109",1,2,"NIE WYSTĘPUJĄ",0,0,"NIE",null,null,{"$f":"Wykaz_zapasów543[[#This Row],[Koszt za I przegląd\nbrutto]]+Wykaz_zapasów543[[#This Row],[Koszt za II przegląd\nbrutto]]","v":{"v":0,"d":"0.00 zł"}},"TAK"]
[null,"Wentylator wyciągowy","Harmann - RM 250/1100\ns/n 210610-F00243-799"," Bud.A35-1/8711 pom. 103",1,2,"NIE WYSTĘPUJĄ",0,0,"NIE",null,null,{"$f":"Wykaz_zapasów543[[#This Row],[Koszt za I przegląd\nbrutto]]+Wykaz_zapasów543[[#This Row],[Koszt za II przegląd\nbrutto]]","v":{"v":0,"d":"0.00 zł"}},"TAK"]
[null,"Wentylator wyciągowy","Harmann - JETTEC 315/2300S\ns/n 210715-N00059-377"," Bud.A35-1/8711 pom. 111",1,2,"NIE WYSTĘPUJĄ",0,0,"NIE",null,null,{"$f":"Wykaz_zapasów543[[#This Row],[Koszt za I przegląd\nbrutto]]+Wykaz_zapasów543[[#This Row],[Koszt za II przegląd\nbrutto]]","v":{"v":0,"d":"0.00 zł"}},"TAK"]
[null,"Wentylator wyciągowy","Harmann - RM 250/1100\ns/n 210610-F00241-799"," Bud.A35-1/8711 pom. 113",1,2,"NIE WYSTĘPUJĄ",0,0,"NIE",null,null,{"$f":"Wykaz_zapasów543[[#This Row],[Koszt za I przegląd\nbrutto]]+Wykaz_zapasów543[[#This Row],[Koszt za II przegląd\nbrutto]]","v":{"v":0,"d":"0.00 zł"}},"TAK"]
[null,"Wentylator wyciągowy","Harmann - JETTEC 355/5100F\ns/n 210916-N00001-268"," Bud.A35-1/8711 pom. 201",1,2,"NIE WYSTĘPUJĄ",0,0,"NIE",null,null,{"$f":"Wykaz_zapasów543[[#This Row],[Koszt za I przegląd\nbrutto]]+Wykaz_zapasów543[[#This Row],[Koszt za II przegląd\nbrutto]]","v":{"v":0,"d":"0.00 zł"}},"TAK"]
[null,"Wentylator wyciągowy","Harmann - JETTEC 250/2400F\ns/n 211025-N00009-377"," Bud.A35-1/8711 pom. 202",1,2,"NIE WYSTĘPUJĄ",0,0,"NIE",null,null,{"$f":"Wykaz_zapasów543[[#This Row],[Koszt za I przegląd\nbrutto]]+Wykaz_zapasów543[[#This Row],[Koszt za II przegląd\nbrutto]]","v":{"v":0,"d":"0.00 zł"}},"TAK"]
[null,"Wentylator nawiewny","Harmann - RM 315/1200\ns/n 210427-A00174-1023"," Bud.A35-1/8711 pom. 105",1,2,"NIE WYSTĘPUJĄ",0,0,"NIE",null,null,{"$f":"Wykaz_zapasów543[[#This Row],[Koszt za I przegląd\nbrutto]]+Wykaz_zapasów543[[#This Row],[Koszt za II przegląd\nbrutto]]","v":{"v":0,"d":"0.00 zł"}},"TAK"]
[null,"Wentylator nawiewny","Harmann - JETTEC 355/5000S\ns/n 211108-N00026-386 "," Bud.A35-1/8711 pom. 201",1,2,"NIE WYSTĘPUJĄ",0,0,"NIE",null,null,{"$f":"Wykaz_zapasów543[[#This Row],[Koszt za I przegląd\nbrutto]]+Wykaz_zapasów543[[#This Row],[Koszt za II przegląd\nbrutto]]","v":{"v":0,"d":"0.00 zł"}},"TAK"]
[null,"Wentylator nawiewny","Harmann - JETTEC 280/2300S\ns/n 211025-N00028-377 "," Bud.A35-1/8711 pom. 202",1,2,"NIE WYSTĘPUJĄ",0,0,"NIE",null,null,{"$f":"Wykaz_zapasów543[[#This Row],[Koszt za I przegląd\nbrutto]]+Wykaz_zapasów543[[#This Row],[Koszt za II przegląd\nbrutto]]","v":{"v":0,"d":"0.00 zł"}},"TAK"]
[null,"Wentylator nawiewny","Harmann - RM 160/450\ns/n 210607- L00027-1106"," Bud.A35-1/8711 pom. 109",1,2,"NIE WYSTĘPUJĄ",0,0,"NIE",null,null,{"$f":"Wykaz_zapasów543[[#This Row],[Koszt za I przegląd\nbrutto]]+Wykaz_zapasów543[[#This Row],[Koszt za II przegląd\nbrutto]]","v":{"v":0,"d":"0.00 zł"}},"TAK"]
[null,"Wentylator wyciągowy","Harmann - AXEN.L\ns/n 206098, 206106,  \n206096, 206084,  \n206112, 206086"," Bud.A35-2/8711 pom. 101",6,2,"NIE WYSTĘPUJĄ",0,0,"NIE",null,null,{"$f":"Wykaz_zapasów543[[#This Row],[Koszt za I przegląd\nbrutto]]+Wykaz_zapasów543[[#This Row],[Koszt za II przegląd\nbrutto]]","v":{"v":0,"d":"0.00 zł"}},"TAK"]
[null,"Wentylator wyciągowy","Harmann - RM 200/950EC\ns/n 210702-F00088-756"," Bud.A35-2/8711 pom. 109",1,2,"NIE WYSTĘPUJĄ",0,0,"NIE",null,null,{"$f":"Wykaz_zapasów543[[#This Row],[Koszt za I przegląd\nbrutto]]+Wykaz_zapasów543[[#This Row],[Koszt za II przegląd\nbrutto]]","v":{"v":0,"d":"0.00 zł"}},"TAK"]
[null,"Wentylator wyciągowy","Harmann - RM 250/1100\ns/n 210309-A00151-1037"," Bud.A35-2/8711 pom. 103",1,2,"NIE WYSTĘPUJĄ",0,0,"NIE",null,null,{"$f":"Wykaz_zapasów543[[#This Row],[Koszt za I przegląd\nbrutto]]+Wykaz_zapasów543[[#This Row],[Koszt za II przegląd\nbrutto]]","v":{"v":0,"d":"0.00 zł"}},"TAK"]
[null,"Wentylator wyciągowy","Harmann - JETTEC 315/2300S\ns/n 210708-N00076-377"," Bud.A35-2/8711 pom. 111",1,2,"NIE WYSTĘPUJĄ",0,0,"NIE",null,null,{"$f":"Wykaz_zapasów543[[#This Row],[Koszt za I przegląd\nbrutto]]+Wykaz_zapasów543[[#This Row],[Koszt za II przegląd\nbrutto]]","v":{"v":0,"d":"0.00 zł"}},"TAK"]
[null,"Wentylator wyciągowy","Harmann - RM 250/1100\ns/n 210610-F00236-799"," Bud.A35-2/8711 pom. 113",1,2,"NIE WYSTĘPUJĄ",0,0,"NIE",null,null,{"$f":"Wykaz_zapasów543[[#This Row],[Koszt za I przegląd\nbrutto]]+Wykaz_zapasów543[[#This Row],[Koszt za II przegląd\nbrutto]]","v":{"v":0,"d":"0.00 zł"}},"TAK"]
[null,"Wentylator wyciągowy","Harmann - JETTEC 355/5000S\ns/n 211108-N00030–386  "," Bud.A35-2/8711 pom. 201",1,2,"NIE WYSTĘPUJĄ",0,0,"NIE",null,null,{"$f":"Wykaz_zapasów543[[#This Row],[Koszt za I przegląd\nbrutto]]+Wykaz_zapasów543[[#This Row],[Koszt za II przegląd\nbrutto]]","v":{"v":0,"d":"0.00 zł"}},"TAK"]
[null,"Wentylator wyciągowy","Harmann - JETTEC 250/2400F\ns/n 211025-N00027-377"," Bud.A35-2/8711 pom. 202",1,2,"NIE WYSTĘPUJĄ",0,0,"NIE",null,null,{"$f":"Wykaz_zapasów543[[#This Row],[Koszt za I przegląd\nbrutto]]+Wykaz_zapasów543[[#This Row],[Koszt za II przegląd\nbrutto]]","v":{"v":0,"d":"0.00 zł"}},"TAK"]
[null,"Wentylator nawiewny","Harmann - RM 315/1200\ns/n 2104427-A00180-1023 "," Bud.A35-2/8711 pom. 105",1,2,"NIE WYSTĘPUJĄ",0,0,"NIE",null,null,{"$f":"Wykaz_zapasów543[[#This Row],[Koszt za I przegląd\nbrutto]]+Wykaz_zapasów543[[#This Row],[Koszt za II przegląd\nbrutto]]","v":{"v":0,"d":"0.00 zł"}},"TAK"]
[null,"Wentylator nawiewny","Harmann - JETTEC 355/5100F\ns/n 211108-N00025-386"," Bud.A35-2/8711 pom. 105",1,2,"NIE WYSTĘPUJĄ",0,0,"NIE",null,null,{"$f":"Wykaz_zapasów543[[#This Row],[Koszt za I przegląd\nbrutto]]+Wykaz_zapasów543[[#This Row],[Koszt za II przegląd\nbrutto]]","v":{"v":0,"d":"0.00 zł"}},"TAK"]
[null,"Wentylator nawiewny","Harmann - JETTEC 280/2300S\ns/n 210406-H00011-268"," Bud.A35-2/8711 pom. 105",1,2,"NIE WYSTĘPUJĄ",0,0,"NIE",null,null,{"$f":"Wykaz_zapasów543[[#This Row],[Koszt za I przegląd\nbrutto]]+Wykaz_zapasów543[[#This Row],[Koszt za II przegląd\nbrutto]]","v":{"v":0,"d":"0.00 zł"}},"TAK"]
[null,"Wentylator nawiewny","Harmann - RM 160/450\ns/n 210607-L00020-1106"," Bud.A35-2/8711 pom. 105",null,2,"NIE WYSTĘPUJĄ",0,0,"NIE",null,null,{"$f":"Wykaz_zapasów543[[#This Row],[Koszt za I przegląd\nbrutto]]+Wykaz_zapasów543[[#This Row],[Koszt za II przegląd\nbrutto]]","v":{"v":0,"d":"0.00 zł"}},"TAK"]
[null,"Wentylator wyciągowy","Harmann - AXEN.L\ns/n 206095, 206107, \n206101, 206092 \n206108, 206089 "," Bud.A35-3/8711 pom. 101",6,2,"NIE WYSTĘPUJĄ",0,0,"NIE",null,null,{"$f":"Wykaz_zapasów543[[#This Row],[Koszt za I przegląd\nbrutto]]+Wykaz_zapasów543[[#This Row],[Koszt za II przegląd\nbrutto]]","v":{"v":0,"d":"0.00 zł"}},"TAK"]
[null,"Wentylator wyciągowy","Harmann - RM 200/950EC\ns/n 210702-F00092-756"," Bud.A35-3/8711 pom. 109",1,2,"NIE WYSTĘPUJĄ",0,0,"NIE",null,null,{"$f":"Wykaz_zapasów543[[#This Row],[Koszt za I przegląd\nbrutto]]+Wykaz_zapasów543[[#This Row],[Koszt za II przegląd\nbrutto]]","v":{"v":0,"d":"0.00 zł"}},"TAK"]
[null,"Wentylator wyciągowy","Harmann - RM 250/1100\ns/n 210610-F00246-799"," Bud.A35-3/8711 pom. 103",1,2,"NIE WYSTĘPUJĄ",0,0,"NIE",null,null,{"$f":"Wykaz_zapasów543[[#This Row],[Koszt za I przegląd\nbrutto]]+Wykaz_zapasów543[[#This Row],[Koszt za II przegląd\nbrutto]]","v":{"v":0,"d":"0.00 zł"}},"TAK"]
[null,"Wentylator wyciągowy","Harmann - JETTEC 315/2300S\ns/n 210715-N00055-377"," Bud.A35-3/8711 pom. 111",1,2,"NIE WYSTĘPUJĄ",0,0,"NIE",null,null,{"$f":"Wykaz_zapasów543[[#This Row],[Koszt za I przegląd\nbrutto]]+Wykaz_zapasów543[[#This Row],[Koszt za II przegląd\nbrutto]]","v":{"v":0,"d":"0.00 zł"}},"TAK"]
[null,"Wentylator wyciągowy","Harmann - RM 250/1100\ns/n 210309-A00155-1037"," Bud.A35-3/8711 pom. 113",1,2,"NIE WYSTĘPUJĄ",0,0,"NIE",null,null,{"$f":"Wykaz_zapasów543[[#This Row],[Koszt za I przegląd\nbrutto]]+Wykaz_zapasów543[[#This Row],[Koszt za II przegląd\nbrutto]]","v":{"v":0,"d":"0.00 zł"}},"TAK"]
[null,"Wentylator wyciągowy","Harmann - JETTEC 355/5100F\ns/n 211108-N00029-386 "," Bud.A35-3/8711 pom. 201",1,2,"NIE WYSTĘPUJĄ",0,0,"NIE",null,null,{"$f":"Wykaz_zapasów543[[#This Row],[Koszt za I przegląd\nbrutto]]+Wykaz_zapasów543[[#This Row],[Koszt za II przegląd\nbrutto]]","v":{"v":0,"d":"0.00 zł"}},"TAK"]
[null,"Wentylator wyciągowy","Harmann - JETTEC 250/2400F\ns/n 211025-N00023-377 "," Bud.A35-3/8711 pom. 202",1,2,"NIE WYSTĘPUJĄ",0,0,"NIE",null,null,{"$f":"Wykaz_zapasów543[[#This Row],[Koszt za I przegląd\nbrutto]]+Wykaz_zapasów543[[#This Row],[Koszt za II przegląd\nbrutto]]","v":{"v":0,"d":"0.00 zł"}},"TAK"]
[null,"Wentylator nawiewny","Harmann - RM 315/1200\ns/n 201204-A000398-1037"," Bud.A35-3/8711 pom. 105",1,2,"NIE WYSTĘPUJĄ",0,0,"NIE",null,null,{"$f":"Wykaz_zapasów543[[#This Row],[Koszt za I przegląd\nbrutto]]+Wykaz_zapasów543[[#This Row],[Koszt za II przegląd\nbrutto]]","v":{"v":0,"d":"0.00 zł"}},"TAK"]
[null,"Wentylator nawiewny","Harmann - JETTEC 355/5000S\ns/n 211108-N00028-386"," Bud.A35-3/8711 pom. 201",1,2,"NIE WYSTĘPUJĄ",0,0,"NIE",null,null,{"$f":"Wykaz_zapasów543[[#This Row],[Koszt za I przegląd\nbrutto]]+Wykaz_zapasów543[[#This Row],[Koszt za II przegląd\nbrutto]]","v":{"v":0,"d":"0.00 zł"}},"TAK"]
[null,"Wentylator nawiewny","Harmann - JETTEC 280/2300S\ns/n 211025-N00029-377"," Bud.A35-3/8711 pom. 202",1,2,"NIE WYSTĘPUJĄ",0,0,"NIE",null,null,{"$f":"Wykaz_zapasów543[[#This Row],[Koszt za I przegląd\nbrutto]]+Wykaz_zapasów543[[#This Row],[Koszt za II przegląd\nbrutto]]","v":{"v":0,"d":"0.00 zł"}},"TAK"]
[null,"Wentylator nawiewny","Harmann - RM 160/450\ns/n 210607-L00028-1106"," Bud.A35-3/8711 pom. 109",1,2,"NIE WYSTĘPUJĄ",0,0,"NIE",null,null,{"$f":"Wykaz_zapasów543[[#This Row],[Koszt za I przegląd\nbrutto]]+Wykaz_zapasów543[[#This Row],[Koszt za II przegląd\nbrutto]]","v":{"v":0,"d":"0.00 zł"}},"TAK"]
[null,"Wentylator wyciągowy","Harmann - AXEN.L\ns/n 206094, 206105,\n206100, 206087,\n206110, 206088 "," Bud.A35-4/8711 pom. 101",6,2,"NIE WYSTĘPUJĄ",0,0,"NIE",null,null,{"$f":"Wykaz_zapasów543[[#This Row],[Koszt za I przegląd\nbrutto]]+Wykaz_zapasów543[[#This Row],[Koszt za II przegląd\nbrutto]]","v":{"v":0,"d":"0.00 zł"}},"TAK"]
[null,"Wentylator wyciągowy","Harmann - RM 200/950EC\ns/n 210702-F00091-756"," Bud.A35-4/8711 pom. 109",1,2,"NIE WYSTĘPUJĄ",0,0,"NIE",null,null,{"$f":"Wykaz_zapasów543[[#This Row],[Koszt za I przegląd\nbrutto]]+Wykaz_zapasów543[[#This Row],[Koszt za II przegląd\nbrutto]]","v":{"v":0,"d":"0.00 zł"}},"TAK"]
[null,"Wentylator wyciągowy","Harmann - RM 250/1100\ns/n 210610-F00244-799"," Bud.A35-4/8711 pom. 103",1,2,"NIE WYSTĘPUJĄ",0,0,"NIE",null,null,{"$f":"Wykaz_zapasów543[[#This Row],[Koszt za I przegląd\nbrutto]]+Wykaz_zapasów543[[#This Row],[Koszt za II przegląd\nbrutto]]","v":{"v":0,"d":"0.00 zł"}},"TAK"]
[null,"Wentylator wyciągowy","Harmann - JETTEC 315/2300S\ns/n 210708-N0074-377"," Bud.A35-4/8711 pom. 111",1,2,"NIE WYSTĘPUJĄ",0,0,"NIE",null,null,{"$f":"Wykaz_zapasów543[[#This Row],[Koszt za I przegląd\nbrutto]]+Wykaz_zapasów543[[#This Row],[Koszt za II przegląd\nbrutto]]","v":{"v":0,"d":"0.00 zł"}},"TAK"]
[null,"Wentylator wyciągowy","Harmann - RM 250/1100\ns/n 210309-A00150-1037"," Bud.A35-4/8711 pom. 113",1,2,"NIE WYSTĘPUJĄ",0,0,"NIE",null,null,{"$f":"Wykaz_zapasów543[[#This Row],[Koszt za I przegląd\nbrutto]]+Wykaz_zapasów543[[#This Row],[Koszt za II przegląd\nbrutto]]","v":{"v":0,"d":"0.00 zł"}},"TAK"]
[null,"Wentylator wyciągowy","Harmann - JETTEC 355/5100F\ns/n 210916-N00003-268 "," Bud.A35-4/8711 pom. 201",1,2,"NIE WYSTĘPUJĄ",0,0,"NIE",null,null,{"$f":"Wykaz_zapasów543[[#This Row],[Koszt za I przegląd\nbrutto]]+Wykaz_zapasów543[[#This Row],[Koszt za II przegląd\nbrutto]]","v":{"v":0,"d":"0.00 zł"}},"TAK"]
[null,"Wentylator wyciągowy","Harmann - JETTEC 250/2400F\ns/n 211025-N00024-377"," Bud.A35-4/8711 pom. 202",1,2,"NIE WYSTĘPUJĄ",0,0,"NIE",null,null,{"$f":"Wykaz_zapasów543[[#This Row],[Koszt za I przegląd\nbrutto]]+Wykaz_zapasów543[[#This Row],[Koszt za II przegląd\nbrutto]]","v":{"v":0,"d":"0.00 zł"}},"TAK"]
[null,"Wentylator nawiewny","Harmann - RM 315/1200\ns/n 210427-A00167-1023"," Bud.A35-4/8711 pom. 105",1,2,"NIE WYSTĘPUJĄ",0,0,"NIE",null,null,{"$f":"Wykaz_zapasów543[[#This Row],[Koszt za I przegląd\nbrutto]]+Wykaz_zapasów543[[#This Row],[Koszt za II przegląd\nbrutto]]","v":{"v":0,"d":"0.00 zł"}},"TAK"]
[null,"Wentylator nawiewny","Harmann - JETTEC 355/5000S\ns/n 210916-N00004-268"," Bud.A35-4/8711 pom. 201",1,2,"NIE WYSTĘPUJĄ",0,0,"NIE",null,null,{"$f":"Wykaz_zapasów543[[#This Row],[Koszt za I przegląd\nbrutto]]+Wykaz_zapasów543[[#This Row],[Koszt za II przegląd\nbrutto]]","v":{"v":0,"d":"0.00 zł"}},"TAK"]
[null,"Wentylator nawiewny","Harmann - JETTEC 280/2300S\ns/n 211025-N00026-377"," Bud.A35-4/8711 pom. 202",1,2,"NIE WYSTĘPUJĄ",0,0,"NIE",null,null,{"$f":"Wykaz_zapasów543[[#This Row],[Koszt za I przegląd\nbrutto]]+Wykaz_zapasów543[[#This Row],[Koszt za II przegląd\nbrutto]]","v":{"v":0,"d":"0.00 zł"}},"TAK"]
[null,"Wentylator nawiewny","Harmann - RM 160/450\ns/n 210607-L00023-1106"," Bud.A35-4/8711 pom. 109",1,2,"NIE WYSTĘPUJĄ",0,0,"NIE",null,null,{"$f":"Wykaz_zapasów543[[#This Row],[Koszt za I przegląd\nbrutto]]+Wykaz_zapasów543[[#This Row],[Koszt za II przegląd\nbrutto]]","v":{"v":0,"d":"0.00 zł"}},"TAK"]
[null,"Wentylator wyciągowy","Harmann - AXEN.L\ns/n 206099, 206103,\n206102, 206091,\n206111, 206111"," Bud.A35-5/8711 pom. 101",6,2,"NIE WYSTĘPUJĄ",0,0,"NIE",null,null,{"$f":"Wykaz_zapasów543[[#This Row],[Koszt za I przegląd\nbrutto]]+Wykaz_zapasów543[[#This Row],[Koszt za II przegląd\nbrutto]]","v":{"v":0,"d":"0.00 zł"}},"TAK"]
[null,"Wentylator wyciągowy","Harmann - RM 200/950EC\ns/n 210702-F00093-756"," Bud.A35-5/8711 pom. 109",1,2,"NIE WYSTĘPUJĄ",0,0,"NIE",null,null,{"$f":"Wykaz_zapasów543[[#This Row],[Koszt za I przegląd\nbrutto]]+Wykaz_zapasów543[[#This Row],[Koszt za II przegląd\nbrutto]]","v":{"v":0,"d":"0.00 zł"}},"TAK"]
[null,"Wentylator wyciągowy","Harmann - RM 250/1100\ns/n 210610-F00247-799"," Bud.A35-5/8711 pom. 103",1,2,"NIE WYSTĘPUJĄ",0,0,"NIE",null,null,{"$f":"Wykaz_zapasów543[[#This Row],[Koszt za I przegląd\nbrutto]]+Wykaz_zapasów543[[#This Row],[Koszt za II przegląd\nbrutto]]","v":{"v":0,"d":"0.00 zł"}},"TAK"]
[null,"Wentylator wyciągowy","Harmann - JETTEC 315/2300S\ns/n 210708-N00078-377"," Bud.A35-5/8711 pom. 111",1,2,"NIE WYSTĘPUJĄ",0,0,"NIE",null,null,{"$f":"Wykaz_zapasów543[[#This Row],[Koszt za I przegląd\nbrutto]]+Wykaz_zapasów543[[#This Row],[Koszt za II przegląd\nbrutto]]","v":{"v":0,"d":"0.00 zł"}},"TAK"]
[null,"Wentylator wyciągowy","Harmann - RM 250/1100\ns/n 210610-F00242-799"," Bud.A35-5/8711 pom. 113",1,2,"NIE WYSTĘPUJĄ",0,0,"NIE",null,null,{"$f":"Wykaz_zapasów543[[#This Row],[Koszt za I przegląd\nbrutto]]+Wykaz_zapasów543[[#This Row],[Koszt za II przegląd\nbrutto]]","v":{"v":0,"d":"0.00 zł"}},"TAK"]
[null,"Wentylator wyciągowy","Harmann - JETTEC 355/5100F\ns/n 210916-N00005-268 "," Bud.A35-5/8711 pom. 201",1,2,"NIE WYSTĘPUJĄ",0,0,"NIE",null,null,{"$f":"Wykaz_zapasów543[[#This Row],[Koszt za I przegląd\nbrutto]]+Wykaz_zapasów543[[#This Row],[Koszt za II przegląd\nbrutto]]","v":{"v":0,"d":"0.00 zł"}},"TAK"]
[null,"Wentylator wyciągowy","Harmann - JETTEC 250/2400F\ns/n 211025-N00018-377"," Bud.A35-5/8711 pom. 202",1,2,"NIE WYSTĘPUJĄ",0,0,"NIE",null,null,{"$f":"Wykaz_zapasów543[[#This Row],[Koszt za I przegląd\nbrutto]]+Wykaz_zapasów543[[#This Row],[Koszt za II przegląd\nbrutto]]","v":{"v":0,"d":"0.00 zł"}},"TAK"]
[null,"Wentylator nawiewny","Harmann - RM 315/1200\ns/n 210427-A00170-1023"," Bud.A35-5/8711 pom. 105",1,2,"NIE WYSTĘPUJĄ",0,0,"NIE",null,null,{"$f":"Wykaz_zapasów543[[#This Row],[Koszt za I przegląd\nbrutto]]+Wykaz_zapasów543[[#This Row],[Koszt za II przegląd\nbrutto]]","v":{"v":0,"d":"0.00 zł"}},"TAK"]
[null,"Wentylator nawiewny","Harmann - JETTEC 355/5000S\ns/n 210916-N00006-268"," Bud.A35-5/8711 pom. 201",1,2,"NIE WYSTĘPUJĄ",0,0,"NIE",null,null,{"$f":"Wykaz_zapasów543[[#This Row],[Koszt za I przegląd\nbrutto]]+Wykaz_zapasów543[[#This Row],[Koszt za II przegląd\nbrutto]]","v":{"v":0,"d":"0.00 zł"}},"TAK"]
[null,"Wentylator nawiewny","Harmann - JETTEC 280/2300S\ns/n 211025-N00017-377"," Bud.A35-5/8711 pom. 202",1,2,"NIE WYSTĘPUJĄ",0,0,"NIE",null,null,{"$f":"Wykaz_zapasów543[[#This Row],[Koszt za I przegląd\nbrutto]]+Wykaz_zapasów543[[#This Row],[Koszt za II przegląd\nbrutto]]","v":{"v":0,"d":"0.00 zł"}},"TAK"]
[null,"Wentylator nawiewny","Harmann - RM 160/450\ns/n 210607-L00022-1206"," Bud.A35-5/8711 pom. 109",1,2,"NIE WYSTĘPUJĄ",0,0,"NIE",null,null,{"$f":"Wykaz_zapasów543[[#This Row],[Koszt za I przegląd\nbrutto]]+Wykaz_zapasów543[[#This Row],[Koszt za II przegląd\nbrutto]]","v":{"v":0,"d":"0.00 zł"}},"TAK"]
[null,"Wentylator wyciągowy","Tywent - MACH-80/2\ns/n 2021/12007, 2021/12009,\n2021/12008"," Bud.A45/8711 pom. 101",3,2,"NIE WYSTĘPUJĄ",0,0,"NIE",null,null,{"$f":"Wykaz_zapasów543[[#This Row],[Koszt za I przegląd\nbrutto]]+Wykaz_zapasów543[[#This Row],[Koszt za II przegląd\nbrutto]]","v":{"v":0,"d":"0.00 zł"}},"TAK"]
[null,"Wentylator wyciągowy","Tywent - OLO-56 A/4 K\ns/n 2021/12007"," Bud.A45/8711 pom. 102",1,2,"NIE WYSTĘPUJĄ",0,0,"NIE",null,null,{"$f":"Wykaz_zapasów543[[#This Row],[Koszt za I przegląd\nbrutto]]+Wykaz_zapasów543[[#This Row],[Koszt za II przegląd\nbrutto]]","v":{"v":0,"d":"0.00 zł"}},"TAK"]
[null,"Wentylator wyciągowy","JETTEC - 560/10800F\ns/n 210803-J00005-386"," Bud.A45/8711 pom. 108",1,2,"NIE WYSTĘPUJĄ",0,0,"NIE",null,null,{"$f":"Wykaz_zapasów543[[#This Row],[Koszt za I przegląd\nbrutto]]+Wykaz_zapasów543[[#This Row],[Koszt za II przegląd\nbrutto]]","v":{"v":0,"d":"0.00 zł"}},"TAK"]
[null,"Wentylator wyciągowy","Harmann - RM 200/800\ns/n 210706-A00339-1023"," Bud.A45/8711 pom. 111",1,2,"NIE WYSTĘPUJĄ",0,0,"NIE",null,null,{"$f":"Wykaz_zapasów543[[#This Row],[Koszt za I przegląd\nbrutto]]+Wykaz_zapasów543[[#This Row],[Koszt za II przegląd\nbrutto]]","v":{"v":0,"d":"0.00 zł"}},"TAK"]
[null,"Wentylator wyciągowy","JETTEC - 280/2300S\ns/n 211025-N00021-377"," Bud.A45/8711 pom. 109",1,2,"NIE WYSTĘPUJĄ",0,0,"NIE",null,null,{"$f":"Wykaz_zapasów543[[#This Row],[Koszt za I przegląd\nbrutto]]+Wykaz_zapasów543[[#This Row],[Koszt za II przegląd\nbrutto]]","v":{"v":0,"d":"0.00 zł"}},"TAK"]
[null,"Centrala wentylacyjna ","VTS - VVS010S\ns/n 8-A10-21-1V010-00192"," Bud.A45/8711 pom. 108",1,2,null,null,2,"NIE",null,null,{"$f":"Wykaz_zapasów543[[#This Row],[Koszt za I przegląd\nbrutto]]+Wykaz_zapasów543[[#This Row],[Koszt za II przegląd\nbrutto]]","v":{"v":0,"d":"0.00 zł"}},"TAK"]
[null,"Wentylator wyciągowy","Harmann Jettec 250/1600s\ns/n 220414-B00006-268"," Bud.A50/8711 pom. 105",1,2,"NIE WYSTĘPUJĄ",0,0,"NIE",null,null,{"$f":"Wykaz_zapasów543[[#This Row],[Koszt za I przegląd\nbrutto]]+Wykaz_zapasów543[[#This Row],[Koszt za II przegląd\nbrutto]]","v":{"v":0,"d":"0.00 zł"}},"TAK"]
[null,"Wentylator wyciągowy","Harmann RM 160/540\ns/n 220905-A00031-998"," Bud.A50/8711 pom. 104",1,2,"NIE WYSTĘPUJĄ",0,0,"NIE",null,null,{"$f":"Wykaz_zapasów543[[#This Row],[Koszt za I przegląd\nbrutto]]+Wykaz_zapasów543[[#This Row],[Koszt za II przegląd\nbrutto]]","v":{"v":0,"d":"0.00 zł"}},"TAK"]
[null,"Centrala wentylacyjna ","VTS VVS040-R-FV\ns/n 8-A10-21-1V040-00394"," Bud.A50/8711 pom. 106",1,2,null,null,2,"NIE",null,null,{"$f":"Wykaz_zapasów543[[#This Row],[Koszt za I przegląd\nbrutto]]+Wykaz_zapasów543[[#This Row],[Koszt za II przegląd\nbrutto]]","v":{"v":0,"d":"0.00 zł"}},"TAK"]
[null,"Centrala wentylacyjna","VTS - VENTUS Compact VVS030c\ns/n 8-A10-21-1V021-V0055-00273"," Bud.A60/8711 pom. 120",1,2,{"$f":"IFERROR(VLOOKUP(Wykaz_zapasów543[[#This Row],[Ilość przeglądów]],#REF!,3,FALSE),\"\")","v":""},null,2,"NIE",null,null,{"$f":"Wykaz_zapasów543[[#This Row],[Koszt za I przegląd\nbrutto]]+Wykaz_zapasów543[[#This Row],[Koszt za II przegląd\nbrutto]]","v":{"v":0,"d":"0.00 zł"}},"TAK"]
[null,"Centrala wentylacyjna","VTS - VENTUS VVS021\n8-A10-21-1V021-00448"," Bud.A60/8711 pom. 151",1,2,{"$f":"IFERROR(VLOOKUP(Wykaz_zapasów543[[#This Row],[Ilość przeglądów]],#REF!,3,FALSE),\"\")","v":""},null,2,"NIE",null,null,{"$f":"Wykaz_zapasów543[[#This Row],[Koszt za I przegląd\nbrutto]]+Wykaz_zapasów543[[#This Row],[Koszt za II przegląd\nbrutto]]","v":{"v":0,"d":"0.00 zł"}},"TAK"]
[null,"Wentylator wyciągowy","Harmann - JETTEC 560/10800F\ns/n 210803-J00008-386,\n210803-J00006-386,\n210803-J00007-386"," Bud.A60/8711 pom. 127",3,2,"NIE WYSTĘPUJĄ",0,0,"NIE",null,null,{"$f":"Wykaz_zapasów543[[#This Row],[Koszt za I przegląd\nbrutto]]+Wykaz_zapasów543[[#This Row],[Koszt za II przegląd\nbrutto]]","v":{"v":0,"d":"0.00 zł"}},"TAK"]
[null,"Wentylator wyciągowy","Tywent - WOE-56/1\n2021/09001"," Bud.A60/8711 pom. 128",1,2,"NIE WYSTĘPUJĄ",0,0,"NIE",null,null,{"$f":"Wykaz_zapasów543[[#This Row],[Koszt za I przegląd\nbrutto]]+Wykaz_zapasów543[[#This Row],[Koszt za II przegląd\nbrutto]]","v":{"v":0,"d":"0.00 zł"}},"TAK"]
[null,"Wentylator wyciągowy","Harmann - RM 250/1100\ns/n"," Bud.A60/8711 pom. 131",1,2,"NIE WYSTĘPUJĄ",0,0,"NIE",null,null,{"$f":"Wykaz_zapasów543[[#This Row],[Koszt za I przegląd\nbrutto]]+Wykaz_zapasów543[[#This Row],[Koszt za II przegląd\nbrutto]]","v":{"v":0,"d":"0.00 zł"}},"TAK"]
[null,"Wentylator wyciągowy","Harmann - JETTEC 250/1600s\ns/n "," Bud.A60/8711 pom. 150",1,2,"NIE WYSTĘPUJĄ",0,0,"NIE",null,null,{"$f":"Wykaz_zapasów543[[#This Row],[Koszt za I przegląd\nbrutto]]+Wykaz_zapasów543[[#This Row],[Koszt za II przegląd\nbrutto]]","v":{"v":0,"d":"0.00 zł"}},"TAK"]
[null,"Wentylator wyciągowy","Harmann - JETTEC 315/3500s\ns/n 210719-N00039-268"," Bud.A60/8711 pom. 127",1,2,"NIE WYSTĘPUJĄ",0,0,"NIE",null,null,{"$f":"Wykaz_zapasów543[[#This Row],[Koszt za I przegląd\nbrutto]]+Wykaz_zapasów543[[#This Row],[Koszt za II przegląd\nbrutto]]","v":{"v":0,"d":"0.00 zł"}},"TAK"]
[null,"Wentylator wyciągowy","Harmann - JETTEC 710/23100F\n210804-J00007-386"," Bud.A60/8711 pom. 133",1,2,"NIE WYSTĘPUJĄ",0,0,"NIE",null,null,{"$f":"Wykaz_zapasów543[[#This Row],[Koszt za I przegląd\nbrutto]]+Wykaz_zapasów543[[#This Row],[Koszt za II przegląd\nbrutto]]","v":{"v":0,"d":"0.00 zł"}},"TAK"]
[null,"Klimatyzacja ","Jednostka zewnętrzna\nDaikin - RZAG71N7V1B\ns/n 2104779"," Bud. A35-1/8711",1,2,"NIE WYSTĘPUJĄ",0,0,"TAK",null,null,{"$f":"Wykaz_zapasów543[[#This Row],[Koszt za I przegląd\nbrutto]]+Wykaz_zapasów543[[#This Row],[Koszt za II przegląd\nbrutto]]","v":{"v":0,"d":"0.00 zł"}},"TAK"]
[null,null,"Jednostka wewnętrzna\nDaikin - FBA71A2VEB9\ns/n J028356"," Bud. A35-1/8711 pom.112",1,2,"NIE WYSTĘPUJĄ",0,0,"TAK",null,null,{"$f":"Wykaz_zapasów543[[#This Row],[Koszt za I przegląd\nbrutto]]+Wykaz_zapasów543[[#This Row],[Koszt za II przegląd\nbrutto]]","v":{"v":0,"d":"0.00 zł"}},"TAK"]
[null,"Klimatyzacja ","Jednostka zewnętrzna\nDaikin - RXM50R2V1B\ns/n J032684"," Bud. A35-1/8711",1,2,"NIE WYSTĘPUJĄ",0,0,"TAK",null,null,{"$f":"Wykaz_zapasów543[[#This Row],[Koszt za I przegląd\nbrutto]]+Wykaz_zapasów543[[#This Row],[Koszt za II przegląd\nbrutto]]","v":{"v":0,"d":"0.00 zł"}},"TAK"]
[null,null,"Jednostka wewnętrzna\nDaikin -FTXM50R2V1B\ns/n J024959"," Bud. A35-1/8711 pom.104",1,2,"NIE WYSTĘPUJĄ",0,0,"TAK",null,null,{"$f":"Wykaz_zapasów543[[#This Row],[Koszt za I przegląd\nbrutto]]+Wykaz_zapasów543[[#This Row],[Koszt za II przegląd\nbrutto]]","v":{"v":0,"d":"0.00 zł"}},"TAK"]
[null,"Klimatyzacja ","Jednostka zewnętrzna\nDaikin - RZAG71N7V1B\ns/n 2104564 "," Bud. A35-2/8711",1,2,"NIE WYSTĘPUJĄ",0,0,"TAK",null,null,{"$f":"Wykaz_zapasów543[[#This Row],[Koszt za I przegląd\nbrutto]]+Wykaz_zapasów543[[#This Row],[Koszt za II przegląd\nbrutto]]","v":{"v":0,"d":"0.00 zł"}},"TAK"]
[null,null,"Jednostka wewnętrzna\nDaikin -FBA71A2VEB9\ns/n J028150"," Bud. A35-2/8711 pom.112",1,2,"NIE WYSTĘPUJĄ",0,0,"TAK",null,null,{"$f":"Wykaz_zapasów543[[#This Row],[Koszt za I przegląd\nbrutto]]+Wykaz_zapasów543[[#This Row],[Koszt za II przegląd\nbrutto]]","v":{"v":0,"d":"0.00 zł"}},"TAK"]
[null,"Klimatyzacja ","Jednostka zewnętrzna\nDaikin - RXM50R2V1B\ns/n J032751 "," Bud. A35-2/8711",1,2,"NIE WYSTĘPUJĄ",0,0,"TAK",null,null,{"$f":"Wykaz_zapasów543[[#This Row],[Koszt za I przegląd\nbrutto]]+Wykaz_zapasów543[[#This Row],[Koszt za II przegląd\nbrutto]]","v":{"v":0,"d":"0.00 zł"}},"TAK"]
[null,null,"Jednostka wewnętrzna\nDaikin -FTXM50R2V1B\ns/n J024962"," Bud. A35-2/8711 pom.104",1,2,"NIE WYSTĘPUJĄ",0,0,"TAK",null,null,{"$f":"Wykaz_zapasów543[[#This Row],[Koszt za I przegląd\nbrutto]]+Wykaz_zapasów543[[#This Row],[Koszt za II przegląd\nbrutto]]","v":{"v":0,"d":"0.00 zł"}},"TAK"]
[null,"Klimatyzacja ","Jednostka zewnętrzna\nDaikin - RZAG71N7V1B\ns/n 2104543"," Bud. A35-3/8711",1,2,"NIE WYSTĘPUJĄ",0,0,"TAK",null,null,{"$f":"Wykaz_zapasów543[[#This Row],[Koszt za I przegląd\nbrutto]]+Wykaz_zapasów543[[#This Row],[Koszt za II przegląd\nbrutto]]","v":{"v":0,"d":"0.00 zł"}},"TAK"]
[null,null,"Jednostka wewnętrzna\nDaikin -FBA71A2VEB9\ns/n J028357"," Bud. A35-3/8711 pom.112",1,2,"NIE WYSTĘPUJĄ",0,0,"TAK",null,null,{"$f":"Wykaz_zapasów543[[#This Row],[Koszt za I przegląd\nbrutto]]+Wykaz_zapasów543[[#This Row],[Koszt za II przegląd\nbrutto]]","v":{"v":0,"d":"0.00 zł"}},"TAK"]
[null,"Klimatyzacja ","Jednostka zewnętrzna\nDaikin - RXM50R2V1B\ns/n J032403"," Bud. A35-3/8711",1,2,"NIE WYSTĘPUJĄ",0,0,"TAK",null,null,{"$f":"Wykaz_zapasów543[[#This Row],[Koszt za I przegląd\nbrutto]]+Wykaz_zapasów543[[#This Row],[Koszt za II przegląd\nbrutto]]","v":{"v":0,"d":"0.00 zł"}},"TAK"]
[null,null,"Jednostka wewnętrzna\nDaikin -FTXM50R2V1B\ns/n J026895"," Bud. A35-3/8711 pom.104",1,2,"NIE WYSTĘPUJĄ",0,0,"TAK",null,null,{"$f":"Wykaz_zapasów543[[#This Row],[Koszt za I przegląd\nbrutto]]+Wykaz_zapasów543[[#This Row],[Koszt za II przegląd\nbrutto]]","v":{"v":0,"d":"0.00 zł"}},"TAK"]
[null,"Klimatyzacja ","Jednostka zewnętrzna\nDaikin - RZAG71N7V1B\ns/n 2105043"," Bud. A35-4/8711",1,2,"NIE WYSTĘPUJĄ",0,0,"TAK",null,null,{"$f":"Wykaz_zapasów543[[#This Row],[Koszt za I przegląd\nbrutto]]+Wykaz_zapasów543[[#This Row],[Koszt za II przegląd\nbrutto]]","v":{"v":0,"d":"0.00 zł"}},"TAK"]
[null,null,"Jednostka wewnętrzna\nDaikin - FBA71A2VEB9\ns/n J028366 "," Bud. A35-4/8711 pom.112",1,2,"NIE WYSTĘPUJĄ",0,0,"TAK",null,null,{"$f":"Wykaz_zapasów543[[#This Row],[Koszt za I przegląd\nbrutto]]+Wykaz_zapasów543[[#This Row],[Koszt za II przegląd\nbrutto]]","v":{"v":0,"d":"0.00 zł"}},"TAK"]
[null,"Klimatyzacja ","Jednostka zewnętrzna\nDaikin - RXM50R2V1B\ns/n J032750"," Bud. A35-4/8711",1,2,"NIE WYSTĘPUJĄ",0,0,"TAK",null,null,{"$f":"Wykaz_zapasów543[[#This Row],[Koszt za I przegląd\nbrutto]]+Wykaz_zapasów543[[#This Row],[Koszt za II przegląd\nbrutto]]","v":{"v":0,"d":"0.00 zł"}},"TAK"]
[null,null,"Jednostka wewnętrzna\nDaikin -FTXM50R2V1B\ns/n J024957 "," Bud. A35-4/8711 pom.104",1,2,"NIE WYSTĘPUJĄ",0,0,"TAK",null,null,{"$f":"Wykaz_zapasów543[[#This Row],[Koszt za I przegląd\nbrutto]]+Wykaz_zapasów543[[#This Row],[Koszt za II przegląd\nbrutto]]","v":{"v":0,"d":"0.00 zł"}},"TAK"]
[null,"Klimatyzacja ","Jednostka zewnętrzna\nDaikin - RZAG71N7V1B\ns/n 2104961"," Bud. A35-5/8711",1,2,"NIE WYSTĘPUJĄ",0,0,"TAK",null,null,{"$f":"Wykaz_zapasów543[[#This Row],[Koszt za I przegląd\nbrutto]]+Wykaz_zapasów543[[#This Row],[Koszt za II przegląd\nbrutto]]","v":{"v":0,"d":"0.00 zł"}},"TAK"]
[null,null,"Jednostka wewnętrzna\nDaikin - FBA71A2VEB9\ns/n J027961"," Bud. A35-5/8711 pom.112",1,2,"NIE WYSTĘPUJĄ",0,0,"TAK",null,null,{"$f":"Wykaz_zapasów543[[#This Row],[Koszt za I przegląd\nbrutto]]+Wykaz_zapasów543[[#This Row],[Koszt za II przegląd\nbrutto]]","v":{"v":0,"d":"0.00 zł"}},"TAK"]
[null,"Klimatyzacja ","Jednostka zewnętrzna\nDaikin - RXM50R2V1B\ns/n J032683"," Bud. A35-5/8711",1,2,"NIE WYSTĘPUJĄ",0,0,"TAK",null,null,{"$f":"Wykaz_zapasów543[[#This Row],[Koszt za I przegląd\nbrutto]]+Wykaz_zapasów543[[#This Row],[Koszt za II przegląd\nbrutto]]","v":{"v":0,"d":"0.00 zł"}},"TAK"]
[null,null,"Jednostka wewnętrzna\nDaikin -FTXM50R2V1B\ns/n J024958"," Bud. A35-5/8711 pom.104",1,2,"NIE WYSTĘPUJĄ",0,0,"TAK",null,null,{"$f":"Wykaz_zapasów543[[#This Row],[Koszt za I przegląd\nbrutto]]+Wykaz_zapasów543[[#This Row],[Koszt za II przegląd\nbrutto]]","v":{"v":0,"d":"0.00 zł"}},"TAK"]
[null,"Klimatyzacja ","Jednostka zewnętrzna\nDaikin - RXM50R2V1B\ns/n J032682"," Bud. A45/8711",1,2,"NIE WYSTĘPUJĄ",0,0,"TAK",null,null,{"$f":"Wykaz_zapasów543[[#This Row],[Koszt za I przegląd\nbrutto]]+Wykaz_zapasów543[[#This Row],[Koszt za II przegląd\nbrutto]]","v":{"v":0,"d":"0.00 zł"}},"TAK"]
[null,null,"Jednostka wewnętrzna\nDaikin - FBA50A2VEB9\ns/n J023778"," Bud. A45/8711 pom.110",1,2,"NIE WYSTĘPUJĄ",0,0,"TAK",null,null,{"$f":"Wykaz_zapasów543[[#This Row],[Koszt za I przegląd\nbrutto]]+Wykaz_zapasów543[[#This Row],[Koszt za II przegląd\nbrutto]]","v":{"v":0,"d":"0.00 zł"}},"TAK"]
[null,"Klimatyzacja ","Jednostka zewnętrzna\nDaikin - RZAG71N7V1B\ns/n 2104660"," Bud. A50/8711",1,2,"NIE WYSTĘPUJĄ",0,0,"TAK",null,null,{"$f":"Wykaz_zapasów543[[#This Row],[Koszt za I przegląd\nbrutto]]+Wykaz_zapasów543[[#This Row],[Koszt za II przegląd\nbrutto]]","v":{"v":0,"d":"0.00 zł"}},"TAK"]
[null,null,"Jednostka wewnętrzna\nDaikin - FBA71A2VEB9\ns/n "," Bud. A50/8711 pom.107",1,2,"NIE WYSTĘPUJĄ",0,0,"TAK",null,null,{"$f":"Wykaz_zapasów543[[#This Row],[Koszt za I przegląd\nbrutto]]+Wykaz_zapasów543[[#This Row],[Koszt za II przegląd\nbrutto]]","v":{"v":0,"d":"0.00 zł"}},"TAK"]
[null,"Klimatyzacja ","Jednostka zewnętrzna\nDaikin - RXM50R2V1B\ns/n J032407"," Bud. A60/8711",1,2,"NIE WYSTĘPUJĄ",0,0,"TAK",null,null,{"$f":"Wykaz_zapasów543[[#This Row],[Koszt za I przegląd\nbrutto]]+Wykaz_zapasów543[[#This Row],[Koszt za II przegląd\nbrutto]]","v":{"v":0,"d":"0.00 zł"}},"TAK"]
[null,null,"Jednostka wewnętrzna\nDaikin -FTXM50R2V1B\ns/n J024436"," Bud. A60/8711 pom.110",1,2,"NIE WYSTĘPUJĄ",0,0,"TAK",null,null,{"$f":"Wykaz_zapasów543[[#This Row],[Koszt za I przegląd\nbrutto]]+Wykaz_zapasów543[[#This Row],[Koszt za II przegląd\nbrutto]]","v":{"v":0,"d":"0.00 zł"}},"TAK"]
[null,"Klimatyzacja ","Jednostka zewnętrzna\nDaikin - RXM50R2V1B\ns/n J032406 "," Bud. A60/8711",1,2,"NIE WYSTĘPUJĄ",0,0,"TAK",null,null,{"$f":"Wykaz_zapasów543[[#This Row],[Koszt za I przegląd\nbrutto]]+Wykaz_zapasów543[[#This Row],[Koszt za II przegląd\nbrutto]]","v":{"v":0,"d":"0.00 zł"}},"TAK"]
[null,null,"Jednostka wewnętrzna\nDaikin - FTXM50R2V1B\ns/n "," Bud. A60/8711 pom.149",1,2,"NIE WYSTĘPUJĄ",0,0,"TAK",null,null,{"$f":"Wykaz_zapasów543[[#This Row],[Koszt za I przegląd\nbrutto]]+Wykaz_zapasów543[[#This Row],[Koszt za II przegląd\nbrutto]]","v":{"v":0,"d":"0.00 zł"}},"TAK"]
[null,"Klimatyzacja ","Jednostka zewnętrzna\nDaikin - RXM50R2V1B\ns/n J032409"," Bud. A60/8711",1,2,"NIE WYSTĘPUJĄ",0,0,"TAK",null,null,{"$f":"Wykaz_zapasów543[[#This Row],[Koszt za I przegląd\nbrutto]]+Wykaz_zapasów543[[#This Row],[Koszt za II przegląd\nbrutto]]","v":{"v":0,"d":"0.00 zł"}},"TAK"]
[null,null,"Jednostka wewnętrzna\nDaikin - FTXM50R2V1B\ns/n J023617"," Bud. A60/8711 pom.113",1,2,"NIE WYSTĘPUJĄ",0,0,"TAK",null,null,{"$f":"Wykaz_zapasów543[[#This Row],[Koszt za I przegląd\nbrutto]]+Wykaz_zapasów543[[#This Row],[Koszt za II przegląd\nbrutto]]","v":{"v":0,"d":"0.00 zł"}},"TAK"]
[null,"Klimatyzacja","Jednostka zewnetrzna:\nLennox E024AH088FM2M\ns/n 600224_1 2/2"," Bud. A60/8711",1,2,"NIE WYSTĘPUJĄ",0,0,"TAK",null,null,{"$f":"Wykaz_zapasów543[[#This Row],[Koszt za I przegląd\nbrutto]]+Wykaz_zapasów543[[#This Row],[Koszt za II przegląd\nbrutto]]","v":{"v":0,"d":"0.00 zł"}},"TAK"]
[null,"Centrala wentylacyjna","VTS - Ventus VVS230\ns/n 8-A10-21-1V230-00030"," Bud. A60/8711 pom.120",1,2,"NIE WYSTĘPUJĄ",0,2,"NIE",null,null,{"$f":"Wykaz_zapasów543[[#This Row],[Koszt za I przegląd\nbrutto]]+Wykaz_zapasów543[[#This Row],[Koszt za II przegląd\nbrutto]]","v":{"v":0,"d":"0.00 zł"}},"TAK"]
[null,"Klimatyzacja","Jednostka zewnetrzna:\nLennox E024AH088FM2M\ns/n 600224_1 1/2"," Bud. A60/8711",1,2,"NIE WYSTĘPUJĄ",0,0,"TAK",null,null,{"$f":"Wykaz_zapasów543[[#This Row],[Koszt za I przegląd\nbrutto]]+Wykaz_zapasów543[[#This Row],[Koszt za II przegląd\nbrutto]]","v":{"v":0,"d":"0.00 zł"}},"TAK"]
[null,"Centrala wentylacyjna","VTS - Ventus VVS230\ns/n 8-A10-21-1V055-00273"," Bud. A60/8711 pom.151",1,2,"NIE WYSTĘPUJĄ",0,2,"NIE",null,null,{"$f":"Wykaz_zapasów543[[#This Row],[Koszt za I przegląd\nbrutto]]+Wykaz_zapasów543[[#This Row],[Koszt za II przegląd\nbrutto]]","v":{"v":0,"d":"0.00 zł"}},"TAK"]
[null,"Centrala wentylacyjna","Mekar - 23MK0508\ns/n 89232108530001"," Bud. A60/8711 pom.128",1,2,"NIE WYSTĘPUJĄ",0,2,"NIE",null,null,{"$f":"Wykaz_zapasów543[[#This Row],[Koszt za I przegląd\nbrutto]]+Wykaz_zapasów543[[#This Row],[Koszt za II przegląd\nbrutto]]","v":{"v":0,"d":"0.00 zł"}},"TAK"]
[null,"Pompa ciepła","TOSHIBA DIGITAL \nINVENTER RAV- GM561ATP-E\ns/n 12700825, 12700789"," Bud. A43/8711",2,2,"NIE WYSTĘPUJĄ",0,0,"NIE",null,null,{"$f":"Wykaz_zapasów543[[#This Row],[Koszt za I przegląd\nbrutto]]+Wykaz_zapasów543[[#This Row],[Koszt za II przegląd\nbrutto]]","v":{"v":0,"d":"0.00 zł"}},"TAK"]
[null,"Pompa ciepła","TOSHIBA DIGITAL \nINVENTER RAV- GM561ATP-E\ns/n 12700780, 12700787"," Bud. A44/8711",2,2,"NIE WYSTĘPUJĄ",0,0,"NIE",null,null,{"$f":"Wykaz_zapasów543[[#This Row],[Koszt za I przegląd\nbrutto]]+Wykaz_zapasów543[[#This Row],[Koszt za II przegląd\nbrutto]]","v":{"v":0,"d":"0.00 zł"}},"TAK"]
[null,"Klimatyzacja Split","Jednostka zewnetrzna:\nAUX 09J2010","KONTENERY\nKOMP. 4204",64,2,"NIE WYSTĘPUJĄ",0,0,"TAK",null,null,{"$f":"Wykaz_zapasów543[[#This Row],[Koszt za I przegląd\nbrutto]]+Wykaz_zapasów543[[#This Row],[Koszt za II przegląd\nbrutto]]","v":{"v":0,"d":"0.00 zł"}},"TAK"]
[null,null,"Jednostka wewnętrzna:\nAUX 09J204","KONTENERY\nKOMP. 4204",64,2,"NIE WYSTĘPUJĄ",0,0,"TAK",null,null,{"$f":"Wykaz_zapasów543[[#This Row],[Koszt za I przegląd\nbrutto]]+Wykaz_zapasów543[[#This Row],[Koszt za II przegląd\nbrutto]]","v":{"v":0,"d":"0.00 zł"}},"TAK"]